Workbook

Sheet GuV_D
A2: Carl Zeiss Meditec AG
A3: Konzerngewinn- und Verlustrechnung (IFRS) 1. Oktober 2013 bis 31. Dezember 2013
K5: 4. Quartal 2012/2013 | P5: 4. Quartal 2011/2012 | U5: Geschäftsjahr 2013/2014 | Z5: Geschäftsjahr 2012/2013*
H6: Anhang | K6: 1. Juli 2013 - 30. September 2013 | P6: 1. Juli 2012 - 30. September 2012 | U6: 1. Oktober 2013 - 31. Dezember 2013 | Z6: 1. Oktober 2012 - 31. Dezember 2012
K7: € Tsd. | P7: € Tsd. | U7: € Tsd. | Z7: € Tsd.
A10: Umsatzerlöse | H10: (2p) (4) | M10: ='GuV 1314'!AE10 -> 0 | N10: =+M10/$M$10 ->  | R10: ='GuV 1213'!AE10 -> 0 | S10: =R10/$R$10 ->  | W10: ='GuV 1314'!K10 -> 212279 | X10: =W10/$W$10 -> 1 | AB10: ='GuV 1213'!K10 -> 218999 | AD10: =+AB10/$AB$10 -> 1
A12: Umsatzkosten | M12: ='GuV 1314'!AE12 -> 0 | N12: =+M12/-$M$10 ->  | R12: ='GuV 1213'!AE12 -> 0 | S12: =R12/-$R$10 ->  | W12: ='GuV 1314'!K12 -> -98314 | X12: =W12/-$W$10 -> 0.4631357789 | AB12: ='GuV 1213'!K12 -> -101583 | AD12: =+AB12/-$AB$10 -> 0.4638514331
B14: Bruttoergebnis vom Umsatz | M14: =+M10+M12 -> 0 | N14: =+M14/$M$10 ->  | R14: =+R10+R12 -> 0 | S14: =R14/$R$10 ->  | W14: =+W10+W12 -> 113965 | X14: =W14/$W$10 -> 0.5368642211 | AB14: =+AB10+AB12 -> 117416 | AD14: =+AB14/$AB$10 -> 0.5361485669
A16: Vertriebs- und Marketingkosten | M16: ='GuV 1314'!AE16 -> 0 | N16: =+M16/-$M$10 ->  | R16: ='GuV 1213'!AE16 -> 0 | S16: =R16/-$R$10 ->  | W16: ='GuV 1314'!K16 -> -53671 | X16: =W16/-$W$10 -> 0.2528323574 | AB16: ='GuV 1213'!K16 -> -53388 | AD16: =+AB16/-$AB$10 -> 0.2437819351
A17: Allgemeine Verwaltungskosten | M17: ='GuV 1314'!AE17 -> 0 | N17: =+M17/-$M$10 ->  | R17: ='GuV 1213'!AE17 -> 0 | S17: =R17/-$R$10 ->  | W17: ='GuV 1314'!K17 -> -10027 | X17: =W17/-$W$10 -> 0.04723500676 | AB17: ='GuV 1213'!K17 -> -9583 | AD17: =+AB17/-$AB$10 -> 0.04375819068
A18: Forschungs- und Entwicklungskosten | H18: (34) | M18: ='GuV 1314'!AE18 -> 0 | N18: =+M18/-$M$10 ->  | R18: ='GuV 1213'!AE18 -> 0 | S18: =R18/-$R$10 ->  | W18: ='GuV 1314'!K18 -> -23773 | X18: =W18/-$W$10 -> 0.1119894102 | AB18: ='GuV 1213'!K18 -> -23120 | AD18: =+AB18/-$AB$10 -> 0.1055712583
A19: Sonstige Erträge | M19: ='GuV 1314'!AE19 -> 0 | N19: =+M19/$M$10 ->  | R19: ='GuV 1213'!AE19 -> 0 | S19: =R19/$R$10 ->  | W19: ='GuV 1314'!AI19 -> 0 | X19: =W19/$W$10 -> 0 | AB19: ='GuV 1213'!AI19 -> 0 | AD19: =+AB19/$AB$10 -> 0
A20: Sonstige Aufwendungen | H20: (5) | M20: ='GuV 1314'!AE20 -> 0 | N20: =+M20/-$M$10 ->  | R20: ='GuV 1213'!AE20 -> 0 | S20: =R20/-$R$10 ->  | W20: ='GuV 1314'!K20 -> 0 | X20: =W20/-$W$10 -> 0 | AB20: ='GuV 1213'!K20 -> 0 | AD20: =+AB20/-$AB$10 -> 0
A21: Kursgewinne / (Kursverluste), netto | H21: (2c) (30) | M21: ='GuV 1314'!O21 -> 0 | N21: =+M21/$M$10 ->  | R21: ='GuV 1213'!O21 -> 0 | S21: =R21/-$R$10 ->  | W21: ='GuV 1314'!S21 -> 0 | X21: =W21/-$W$10 -> 0 | AB21: ='GuV 1213'!S21 -> 0 | AD21: =+AB21/-$AB$10 -> 0
B23: Ergebnis vor Zinsen, Ertragsteuern, Abschreibungen und Amortisationen | K23: ='GuV 1314'!AC23 -> 0 | N23: =+K23/M10 ->  | P23: ='GuV 1213'!AC23 -> 0 | S23: =+P23/R10 ->  | U23: ='GuV 1314'!I23 -> 30540 | X23: =+U23/W10 -> 0.143867269 | Z23: ='GuV 1213'!I23 -> 35592 | AD23: =+Z23/AB10 -> 0.1625212901
B24: Abschreibungen und Amortisationen | K24: ='GuV 1314'!AC24 -> 0 | P24: ='GuV 1213'!AC24 -> 0 | U24: ='GuV 1314'!I24 -> 4046 | Z24: ='GuV 1213'!I24 -> 4267
B26: Ergebnis vor Zinsen und Ertragsteuern | M26: =+M14+M16+M17+M18+M21+M19+M20 -> 0 | N26: =+M26/$M$10 ->  | R26: =+R14+R16+R17+R18+R21+R19+R20 -> 0 | S26: =R26/$R$10 ->  | W26: =+W14+W16+W17+W18+W21+W19+W20 -> 26494 | X26: =W26/$W$10 -> 0.1248074468 | AB26: =AB14+AB16+AB17+AB18+AB19+AB20 -> 31325 | AD26: =+AB26/$AB$10 -> 0.1430371828
A28: Ergebnis aus At-Equity bewerteten Finanzanlagen | M28: ='GuV 1314'!AE28 -> 0 | N28: =+M28/-$M$10 ->  | R28: ='GuV 1213'!AE28 -> 0 | S28: =R28/-$R$10 ->  | W28: ='GuV 1314'!K28 -> 0 | X28: =W28/-$W$10 -> 0 | AB28: ='GuV 1213'!K28 -> 0 | AD28: =+AB28/-$AB$10 -> 0
A29: Zinserträge | H29: (7) | M29: ='GuV 1314'!AE29 -> 0 | N29: =+M29/$M$10 ->  | R29: ='GuV 1213'!AE29 -> 0 | S29: =R29/$R$10 ->  | W29: ='GuV 1314'!K29 -> 622 | X29: =W29/$W$10 -> 0.002930106134 | AB29: ='GuV 1213'!K29 -> 701 | AD29: =+AB29/$AB$10 -> 0.003200927858
A30: Zinsaufwendungen | H30: (7) | M30: ='GuV 1314'!AE30 -> 0 | N30: =+M30/-$M$10 ->  | R30: ='GuV 1213'!AE30 -> 0 | S30: =R30/-$R$10 ->  | W30: ='GuV 1314'!K30 -> -1499 | X30: =W30/-$W$10 -> 0.007061461567 | AB30: ='GuV 1213'!K30 -> -1307 | AD30: =+AB30/-$AB$10 -> 0.005968063781
A31: Kursgewinne / (Kursverluste), netto | H31: (2c) (2v) (7) | M31: ='GuV 1314'!AE31 -> 0 | N31: =+M31/$M$10 ->  | R31: ='GuV 1213'!AE31 -> 0 | S31: =R31/$R$10 ->  | W31: ='GuV 1314'!K31 -> 5510 | X31: =W31/$W$10 -> 0.02595640643 | AB31: ='GuV 1213'!K31 -> 6953 | AD31: =+AB31/$AB$10 -> 0.03174900342
A32: Sonstiges Finanzergebnis | H32: (7) | M32: ='GuV 1314'!AE32 -> 0 | N32: =+M32/$M$10 ->  | R32: ='GuV 1213'!AE32 -> 0 | S32: =R32/$R$10 ->  | W32: ='GuV 1314'!K32 -> 710 | X32: =W32/$W$10 -> 0.003344654912 | AB32: ='GuV 1213'!K32 -> 633 | AD32: =+AB32/$AB$10 -> 0.002890424157
B34: Ergebnis vor Ertragsteuern | M34: =+M26+M29+M30+M32+M28+M31 -> 0 | N34: =+M34/$M$10 ->  | R34: =+R26+R29+R30+R32+R28+R31 -> 0 | S34: =R34/$R$10 ->  | W34: =+W26+W29+W30+W32+W28+W31 -> 31837 | X34: =W34/$W$10 -> 0.1499771527 | AB34: =+AB26+AB29+AB30+AB32+AB31+AB28 -> 38305 | AD34: =+AB34/$AB$10 -> 0.1749094745
A36: Ertragsteueraufwand | H36: (8) | M36: ='GuV 1314'!AE36 -> 0 | N36: =+M36/-$M$10 ->  | R36: ='GuV 1213'!AE36 -> 0 | S36: =R36/$R$10 ->  | W36: ='GuV 1314'!K36 -> -10413 | X36: =W36/$W$10 -> -0.04905336844 | AB36: ='GuV 1213'!K36 -> -13118 | AD36: =+AB36/-$AB$10 -> 0.05989981689
A38: Konzernergebnis | M38: =SUM(M34:M36) -> 0 | N38: =+M38/$M$10 ->  | R38: =SUM(R34:R36) -> 0 | S38: =R38/$R$10 ->  | W38: =SUM(W34:W36) -> 21424 | X38: =W38/$W$10 -> 0.1009237843 | AB38: =SUM(AB34:AB36) -> 25187 | AD38: =+AB38/$AB$10 -> 0.1150096576
A40: davon entfallen auf:
B41: Gesellschafter des Mutterunternehmens | M41: ='GuV 1314'!AE41 -> 0 | N41: =+M41/$M$10 ->  | R41: ='GuV 1213'!AE41 -> 0 | S41: =R41/$R$10 ->  | W41: ='GuV 1314'!K41 -> 20098 | X41: =W41/$W$10 -> 0.09467728791 | AB41: ='GuV 1213'!K41 -> 23327 | AD41: =+AB41/$AB$10 -> 0.1065164681
B42: Anteile nicht-beherrschender Gesellschafter | M42: ='GuV 1314'!AE42 -> 0 | N42: =+M42/$M$10 ->  | R42: ='GuV 1213'!AE42 -> 0 | S42: =R42/$R$10 ->  | W42: ='GuV 1314'!K42 -> 1326 | X42: =W42/$W$10 -> 0.006246496356 | AB42: ='GuV 1213'!K42 -> 1860 | AD42: =+AB42/$AB$10 -> 0.008493189467
A44: Gewinn / (Verlust) je Aktie, der den Aktionären des Mutterunternehmens im Geschäftsjahr zusteht (in €):
B46: ="- Unverwässert / verwässert" -> - Unverwässert / verwässert | H46: (2r) (9) | M46: ='GuV 1314'!AE46 -> 0 | R46: ='GuV 1213'!AE46 -> 0 | W46: ='GuV 1314'!K46 -> 0.2471786545 | AB46: ='GuV 1213'!K46 -> 0.2868910575
A48: * Das Vorjahr wurde aufgrund des geänderten IAS 19 angepasst.
A49: Der nachfolgende Konzernanhang ist integraler Bestandteil des ungeprüften Konzernabschlusses.
M52: =+M36/M34 ->  | R52: =+R36/R34 ->  | W52: =+W36/W34 -> -0.3270722744 | AB52: =+AB36/AB34 -> -0.3424618196
R53: =R36/R34 ->  | W53: =W36/W34 -> -0.3270722744 | AB53: =AB36/AB34 -> -0.3424618196

Sheet GuV_E
A2: Carl Zeiss Meditec AG
A3: Consolidated income statement (IFRS) for the period from 1 October 2013 to 31 December 2013
K5: 4th quarter 2012/2013 | P5: 4th quarter 2011/2012 | U5: Financial year 2013/2014 | Z5: Financial year 2012/2013*
H6: Note | K6: 1 July 2013 - 30 September 2013 | P6: 1 July 2012 - 30 September 2012 | U6: 1 October 2013 - 31 December 2013 | Z6: 1 October 2012 - 31 December 2012
K7: ="€ '000" -> € '000 | P7: € Tsd. | U7: € Tsd. | Z7: ="€ '000" -> € '000
A10: Revenue | H10: (2p) (4) | M10: =GuV_D!M10 -> 0 | N10: =+M10/$M$10 ->  | R10: =GuV_D!R10 -> 0 | S10: =R10/$R$10 ->  | W10: =GuV_D!W10 -> 212279 | X10: =W10/$W$10 -> 1 | AB10: =GuV_D!AB10 -> 218999 | AD10: =+AB10/$AB$10 -> 1
A12: Cost of goods sold | M12: =GuV_D!M12 -> 0 | N12: =+M12/-$M$10 ->  | R12: =GuV_D!R12 -> 0 | S12: =R12/-$R$10 ->  | W12: =GuV_D!W12 -> -98314 | X12: =W12/-$W$10 -> 0.4631357789 | AB12: =GuV_D!AB12 -> -101583 | AD12: =+AB12/-$AB$10 -> 0.4638514331
B14: Gross profit | M14: =GuV_D!M14 -> 0 | N14: =+M14/$M$10 ->  | R14: =GuV_D!R14 -> 0 | S14: =R14/$R$10 ->  | W14: =GuV_D!W14 -> 113965 | X14: =W14/$W$10 -> 0.5368642211 | AB14: =GuV_D!AB14 -> 117416 | AD14: =+AB14/$AB$10 -> 0.5361485669
A16: Selling and marketing expenses | M16: =GuV_D!M16 -> 0 | N16: =+M16/-$M$10 ->  | R16: =GuV_D!R16 -> 0 | S16: =R16/-$R$10 ->  | W16: =GuV_D!W16 -> -53671 | X16: =W16/-$W$10 -> 0.2528323574 | AB16: =GuV_D!AB16 -> -53388 | AD16: =+AB16/-$AB$10 -> 0.2437819351
A17: General administrative expenses | M17: =GuV_D!M17 -> 0 | N17: =+M17/-$M$10 ->  | R17: =GuV_D!R17 -> 0 | S17: =R17/-$R$10 ->  | W17: =GuV_D!W17 -> -10027 | X17: =W17/-$W$10 -> 0.04723500676 | AB17: =GuV_D!AB17 -> -9583 | AD17: =+AB17/-$AB$10 -> 0.04375819068
A18: Research and development expenses | H18: (34) | M18: =GuV_D!M18 -> 0 | N18: =+M18/-$M$10 ->  | R18: =GuV_D!R18 -> 0 | S18: =R18/-$R$10 ->  | W18: =GuV_D!W18 -> -23773 | X18: =W18/-$W$10 -> 0.1119894102 | AB18: =GuV_D!AB18 -> -23120 | AD18: =+AB18/-$AB$10 -> 0.1055712583
A19: Other income | M19: =GuV_D!M19 -> 0 | N19: =+M19/$M$10 ->  | R19: =GuV_D!R19 -> 0 | S19: =R19/$R$10 ->  | W19: =GuV_D!W19 -> 0 | X19: =W19/$W$10 -> 0 | AB19: =GuV_D!AB19 -> 0 | AD19: =+AB19/$AB$10 -> 0
A20: Other expense | H20: (5) | M20: =GuV_D!M20 -> 0 | N20: =+M20/-$M$10 ->  | R20: =GuV_D!R20 -> 0 | S20: =R20/-$R$10 ->  | W20: =GuV_D!W20 -> 0 | X20: =W20/-$W$10 -> 0 | AB20: =GuV_D!AB20 -> 0 | AD20: =+AB20/-$AB$10 -> 0
A21: Foreign currency gains / (losses), net | H21: (2c) (30) | M21: =+[1]GuV_D!M21 -> 0 | N21: =+M21/$M$10 ->  | R21: =+[1]GuV_D!R21 -> 0 | S21: =+R21/-$Q$10 ->  | W21: =+[1]GuV_D!W21 -> 0 | X21: =+W21/$V$10 ->  | AB21: =+[1]GuV_D!AB21 -> 0 | AD21: =+AB21/$AB$10 -> 0
B23: Earnings before interests, income taxes, depreciation and amortisation | K23: =GuV_D!K23 -> 0 | N23: =+K23/M10 ->  | P23: =GuV_D!P23 -> 0 | S23: =+P23/R10 ->  | U23: =GuV_D!U23 -> 30540 | X23: =+U23/W10 -> 0.143867269 | Z23: =GuV_D!Z23 -> 35592 | AD23: =+Z23/AB10 -> 0.1625212901
B24: Depreciation and amortisation | K24: =GuV_D!K24 -> 0 | P24: =GuV_D!P24 -> 0 | U24: =GuV_D!U24 -> 4046 | Z24: =GuV_D!Z24 -> 4267
B26: Earnings before interests and income taxes | M26: =GuV_D!M26 -> 0 | N26: =+M26/$M$10 ->  | R26: =GuV_D!R26 -> 0 | S26: =R26/$R$10 ->  | W26: =GuV_D!W26 -> 26494 | X26: =W26/$W$10 -> 0.1248074468 | AB26: =GuV_D!AB26 -> 31325 | AD26: =+AB26/$AB$10 -> 0.1430371828
A28: Results from investments accounted for using the equity method | M28: =GuV_D!M28 -> 0 | N28: =+M28/-$M$10 ->  | R28: =GuV_D!R28 -> 0 | S28: =R28/-$R$10 ->  | W28: =GuV_D!W28 -> 0 | X28: =W28/-$W$10 -> 0 | AB28: =GuV_D!AB28 -> 0 | AD28: =+AB28/-$AB$10 -> 0
A29: Interest income | H29: (7) | M29: =GuV_D!M29 -> 0 | N29: =+M29/$M$10 ->  | R29: =GuV_D!R29 -> 0 | S29: =R29/$R$10 ->  | W29: =GuV_D!W29 -> 622 | X29: =W29/$W$10 -> 0.002930106134 | AB29: =GuV_D!AB29 -> 701 | AD29: =+AB29/$AB$10 -> 0.003200927858
A30: Interest expense | H30: (7) | M30: =GuV_D!M30 -> 0 | N30: =+M30/-$M$10 ->  | R30: =GuV_D!R30 -> 0 | S30: =R30/-$R$10 ->  | W30: =GuV_D!W30 -> -1499 | X30: =W30/-$W$10 -> 0.007061461567 | AB30: =GuV_D!AB30 -> -1307 | AD30: =+AB30/-$AB$10 -> 0.005968063781
A31: Foreign currency gains / (losses), net | H31: (2c) (2v) (7) | M31: =GuV_D!M31 -> 0 | N31: =+M31/$M$10 ->  | R31: =GuV_D!R31 -> 0 | S31: =R31/$R$10 ->  | W31: =GuV_D!W31 -> 5510 | X31: =W31/$W$10 -> 0.02595640643 | AB31: =GuV_D!AB31 -> 6953 | AD31: =+AB31/$AB$10 -> 0.03174900342
A32: Other financial result | H32: (7) | M32: =GuV_D!M32 -> 0 | N32: =+M32/$M$10 ->  | R32: =GuV_D!R32 -> 0 | S32: =R32/$R$10 ->  | W32: =GuV_D!W32 -> 710 | X32: =W32/$W$10 -> 0.003344654912 | AB32: =GuV_D!AB32 -> 633 | AD32: =+AB32/$AB$10 -> 0.002890424157
B34: Earnings before income taxes | M34: =GuV_D!M34 -> 0 | N34: =+M34/$M$10 ->  | R34: =GuV_D!R34 -> 0 | S34: =R34/$R$10 ->  | W34: =GuV_D!W34 -> 31837 | X34: =W34/$W$10 -> 0.1499771527 | AB34: =GuV_D!AB34 -> 38305 | AD34: =+AB34/$AB$10 -> 0.1749094745
A36: Income tax expense | H36: (8) | M36: =GuV_D!M36 -> 0 | N36: =+M36/-$M$10 ->  | R36: =GuV_D!R36 -> 0 | S36: =R36/$R$10 ->  | W36: =GuV_D!W36 -> -10413 | X36: =W36/$W$10 -> -0.04905336844 | AB36: =GuV_D!AB36 -> -13118 | AD36: =+AB36/-$AB$10 -> 0.05989981689
A38: Net income | M38: =GuV_D!M38 -> 0 | N38: =+M38/$M$10 ->  | R38: =GuV_D!R38 -> 0 | S38: =R38/$R$10 ->  | W38: =GuV_D!W38 -> 21424 | X38: =W38/$W$10 -> 0.1009237843 | AB38: =GuV_D!AB38 -> 25187 | AD38: =+AB38/$AB$10 -> 0.1150096576
A40: Attributable to:
B41: Shareholders of the parent company | M41: =GuV_D!M41 -> 0 | N41: =+M41/$M$10 ->  | R41: =GuV_D!R41 -> 0 | S41: =R41/$R$10 ->  | W41: =GuV_D!W41 -> 20098 | X41: =W41/$W$10 -> 0.09467728791 | AB41: =GuV_D!AB41 -> 23327 | AD41: =+AB41/$AB$10 -> 0.1065164681
B42: Non-controlling interest | M42: =GuV_D!M42 -> 0 | N42: =+M42/$M$10 ->  | R42: =GuV_D!R42 -> 0 | S42: =R42/$R$10 ->  | W42: =GuV_D!W42 -> 1326 | X42: =W42/$W$10 -> 0.006246496356 | AB42: =GuV_D!AB42 -> 1860 | AD42: =+AB42/$AB$10 -> 0.008493189467
A44: Profit / (loss) per share, attributable to the shareholders of the parent company in the current financial year (€):
B46: ="- Basic / diluted" -> - Basic / diluted | H46: (2r) (10) | M46: =GuV_D!M46 -> 0 | R46: =GuV_D!R46 -> 0 | W46: =GuV_D!W46 -> 0.2471786545 | AB46: =GuV_D!AB46 -> 0.2868910575
A48: * The prior-year figures are adjusted due to amended IAS 19 regulations.
A49: The following notes to the consolidated financial statements are an integral part of the unaudited consolidated financial statements.

Sheet GuV 1314
A2: Carl Zeiss Meditec AG
A3: Konzerngewinn- und Verlustrechnung (IFRS)
I5: QI 2013/14 | M5: QII 2013/14 | Q5: 6 Monate 2013/14 | U5: QIII 2013/14 | Y5: 9 Monate 2013/14 | AC5: QIV 2013/14 | AG5: GJ 2013/14
H6: Anhang
I7: € Tsd. | M7: € Tsd. | Q7: € Tsd. | U7: € Tsd. | Y7: € Tsd. | AC7: € Tsd. | AG7: € Tsd.
A10: Umsatzerlöse | H10: (2o) | K10: 212279 | L10: 1 | O10: =+S10-K10 -> -212279 | P10: 1 | T10: 1 | W10: =+AA10-S10 -> 0 | X10: 1 | AB10: 1 | AE10: =+AI10-AA10 -> 0 | AF10: 1
A12: Umsatzkosten | K12: -98314 | L12: =+K12/-K$10 -> 0.4631357789 | O12: =+S12-K12 -> 98314 | P12: =+O12/-O$10 -> 0.4631357789 | T12: =+S12/-S$10 ->  | W12: =+AA12-S12 -> 0 | X12: =+W12/-W$10 ->  | AB12: =+AA12/-AA$10 ->  | AE12: =+AI12-AA12 -> 0 | AF12: =+AE12/-AE$10 -> 
B14: Bruttoergebnis vom Umsatz | K14: =+K10+K12 -> 113965 | L14: =+K14/-K$10 -> -0.5368642211 | O14: =+O10+O12 -> -113965 | P14: =+O14/-O$10 -> -0.5368642211 | S14: =+S10+S12 -> 0 | T14: =+S14/-S$10 ->  | W14: =+W10+W12 -> 0 | X14: =+W14/-W$10 ->  | AA14: =+AA10+AA12 -> 0 | AB14: =+AA14/-AA$10 ->  | AE14: =+AE10+AE12 -> 0 | AF14: =+AE14/-AE$10 ->  | AI14: =+AI10+AI12 -> 0
A16: Vertriebs- und Marketingkosten | K16: -53671 | L16: =+K16/-K$10 -> 0.2528323574 | O16: =+S16-K16 -> 53671 | P16: =+O16/-O$10 -> 0.2528323574 | T16: =+S16/-S$10 ->  | W16: =+AA16-S16 -> 0 | X16: =+W16/-W$10 ->  | AB16: =+AA16/-AA$10 ->  | AE16: =+AI16-AA16 -> 0 | AF16: =+AE16/-AE$10 -> 
A17: Allgemeine Verwaltungskosten | K17: -10027 | L17: 0.04723500676 | O17: 10027 | P17: 0.04723500676 | W17: 0 | AE17: 0
A18: Forschungs- und Entwicklungskosten | H18: (21) | K18: -23773 | L18: 0.1119894102 | O18: 23773 | P18: 0.1119894102 | W18: 0 | AE18: 0
A19: Sonstige Erträge | L19: 0 | O19: 0 | P19: 0 | W19: 0 | AE19: 0
A20: Sonstige Aufwendungen | L20: 0 | O20: 0 | P20: 0 | W20: 0 | AE20: 0
A21: Kursgewinne / (Kursverluste), netto | H21: (2b) (19) | L21: 0 | O21: 0 | P21: 0 | W21: 0 | AE21: 0
B23: Ergebnis vor Zinsen, Ertragsteuern, Abschreibungen und Amortisationen | I23: =+K26+I24 -> 30540 | M23: =+O26+M24 -> -30540 | Q23: =+S26+Q24 -> 0 | U23: =+Y23-Q23 -> 0 | Y23: =+Y24+AA26 -> 0 | AC23: =+AE26+AC24 -> 0 | AG23: =+AG24+AI26 -> 0
B24: Abschreibungen und Amortisationen | I24: 4046 | M24: =+Q24-I24 -> -4046 | U24: =+Y24-Q24 -> 0 | AC24: =+AG24-Y24 -> 0
B26: Ergebnis vor Zinsen und Ertragsteuern | K26: =+K14+K16+K17+K18+K19+K20+K21 -> 26494 | L26: =+K26/-K$10 -> -0.1248074468 | O26: =+O14+O16+O17+O18+O21+O19+O20 -> -26494 | P26: =+O26/-O$10 -> -0.1248074468 | S26: =+S14+S16+S17+S18+S19+S20+S21 -> 0 | T26: =+S26/-S$10 ->  | W26: =+W14+W16+W17+W18+W21+W19+W20 -> 0 | X26: =+W26/-W$10 ->  | AA26: =+AA14+AA16+AA17+AA18+AA19+AA20+AA21 -> 0 | AB26: =+AA26/-AA$10 ->  | AE26: =+AE14+AE16+AE17+AE18+AE21+AE19+AE20 -> 0 | AF26: =+AE26/-AE$10 ->  | AI26: =+AI14+AI16+AI17+AI18+AI21+AI19+AI20 -> 0
A28: At equity Ergebnis | L28: =+K28/-K$10 -> 0 | O28: =+S28-K28 -> 0 | P28: =+O28/-O$10 -> 0 | T28: =+S28/-S$10 ->  | W28: =+AA28-S28 -> 0 | X28: =+W28/-W$10 ->  | AB28: =+AA28/-AA$10 ->  | AE28: =+AI28-AA28 -> 0 | AF28: =+AE28/-AE$10 -> 
A29: Zinserträge | K29: 622 | L29: =+K29/-K$10 -> -0.002930106134 | O29: =+S29-K29 -> -622 | P29: =+O29/-O$10 -> -0.002930106134 | T29: =+S29/-S$10 ->  | W29: =+AA29-S29 -> 0 | X29: =+W29/-W$10 ->  | AB29: =+AA29/-AA$10 ->  | AE29: =+AI29-AA29 -> 0 | AF29: =+AE29/-AE$10 -> 
A30: Zinsaufwendungen | K30: -1499 | L30: =+K30/-K$10 -> 0.007061461567 | O30: =+S30-K30 -> 1499 | P30: =+O30/-O$10 -> 0.007061461567 | T30: =+S30/-S$10 ->  | W30: =+AA30-S30 -> 0 | X30: =+W30/-W$10 ->  | AB30: =+AA30/-AA$10 ->  | AE30: =+AI30-AA30 -> 0 | AF30: =+AE30/-AE$10 -> 
A31: Kursgewinne / (Kursverluste), netto | K31: 5510 | L31: =+K31/-K$10 -> -0.02595640643 | O31: =+S31-K31 -> -5510 | P31: =+O31/-O$10 -> -0.02595640643 | T31: =+S31/-S$10 ->  | W31: =+AA31-S31 -> 0 | X31: =+W31/-W$10 ->  | AB31: =+AA31/-AA$10 ->  | AE31: =+AI31-AA31 -> 0 | AF31: =+AE31/-AE$10 -> 
A32: übriges Finanzergebnis | K32: 710 | L32: =+K32/-K$10 -> -0.003344654912 | O32: =+S32-K32 -> -710 | P32: =+O32/-O$10 -> -0.003344654912 | T32: =+S32/-S$10 ->  | W32: =+AA32-S32 -> 0 | X32: =+W32/-W$10 ->  | AB32: =+AA32/-AA$10 ->  | AE32: =+AI32-AA32 -> 0 | AF32: =+AE32/-AE$10 -> 
B34: Ergebnis vor Ertragsteuern | K34: =+K26+K28+K29+K30+K31+K32 -> 31837 | L34: =+K34/-K$10 -> -0.1499771527 | O34: =+O26+O28+O29+O30+O31+O32 -> -31837 | P34: =+O34/-O$10 -> -0.1499771527 | S34: =+S26+S28+S29+S30+S31+S32 -> 0 | T34: =+S34/-S$10 ->  | W34: =+W26+W29+W30+W32+W28+W31 -> 0 | X34: =+W34/-W$10 ->  | AA34: =+AA26+AA28+AA29+AA30+AA31+AA32 -> 0 | AB34: =+AA34/-AA$10 ->  | AE34: =+AE26+AE29+AE30+AE32+AE28+AE31 -> 0 | AF34: =+AE34/-AE$10 ->  | AI34: =+AI26+AI29+AI30+AI32+AI28+AI31 -> 0
A36: Ertragsteueraufwand | H36: (22) | K36: -10413 | L36: =+K36/-K$10 -> 0.04905336844 | O36: =+S36-K36 -> 10413 | P36: =+O36/-O$10 -> 0.04905336844 | T36: =+S36/-S$10 ->  | W36: =+AA36-S36 -> 0 | X36: =+W36/-W$10 ->  | AB36: =+AA36/-AA$10 ->  | AE36: =+AI36-AA36 -> 0 | AF36: =+AE36/-AE$10 -> 
A38: Konzernergebnis | K38: =+K34+K36 -> 21424 | L38: =+K38/-K$10 -> -0.1009237843 | O38: =SUM(O34:O36) -> -21424 | P38: =+O38/-O$10 -> -0.1009237843 | S38: =+S34+S36 -> 0 | T38: =+S38/-S$10 ->  | W38: =SUM(W34:W36) -> 0 | X38: =+W38/-W$10 ->  | AA38: =+AA34+AA36 -> 0 | AB38: =+AA38/-AA$10 ->  | AE38: =SUM(AE34:AE36) -> 0 | AF38: =+AE38/-AE$10 ->  | AI38: =SUM(AI34:AI36) -> 0
A40: davon entfallen auf:
B41: Gesellschafter des Mutterunternehmens | K41: =+K38-K42 -> 20098 | L41: =+K41/-K$10 -> -0.09467728791 | O41: =+S41-K41 -> -20098 | P41: =+O41/-O$10 -> -0.09467728791 | S41: =+S38-S42 -> 0 | T41: =+S41/-S$10 ->  | W41: =+AA41-S41 -> 0 | X41: =+W41/-W$10 ->  | AA41: =+AA38-AA42 -> 0 | AB41: =+AA41/-AA$10 ->  | AE41: =+AI41-AA41 -> 0 | AF41: =+AE41/-AE$10 ->  | AI41: =+AI38-AI42 -> 0
B42: Minderheiten | K42: 1326 | L42: =+K42/-K$10 -> -0.006246496356 | O42: =+S42-K42 -> -1326 | P42: =+O42/-O$10 -> -0.006246496356 | T42: =+S42/-S$10 ->  | W42: =+AA42-S42 -> 0 | X42: =+W42/-W$10 ->  | AB42: =+AA42/-AA$10 ->  | AE42: =+AI42-AA42 -> 0 | AF42: =+AE42/-AE$10 -> 
A44: Gewinn / (Verlust) je Aktie, der den Aktionären des Mutterunternehmens im Geschäftsjahr zusteht (in €):
B46: ="- Unverwässert" -> - Unverwässert | H46: 2 (q) | K46: =+K41/81309610*1000 -> 0.2471786545 | O46: =+O41/81309610*1000 -> -0.2471786545 | S46: =+S41/81309610*1000 -> 0 | W46: =+W41/81309610*1000 -> 0 | AA46: =+AA41/81309610*1000 -> 0 | AE46: =+AE41/81309610*1000 -> 0 | AI46: =+AI41/81309610*1000 -> 0
A48: Der nachfolgende Konzernanhang ist integraler Bestandteil des ungeprüften Konzernabschlusses.
K50: =+K36/K34 -> -0.3270722744 | O50: =+O36/O34 -> -0.3270722744 | S50: =+S36/S34 ->  | W50: =+W36/W34 ->  | AA50: =+AA36/AA34 -> 
K53: =+K17+K18+K16 -> -87471 | O53: =+O17+O18+O16 -> 87471

Sheet GuV 0809 (hidden)
A2: Carl Zeiss Meditec AG
A3: Konzerngewinn- und Verlustrechnung (IFRS)
I5: QI 2008/2009 | M5: QII 2008/2009 | Q5: 6 Monate 2008/2009 | U5: QIII 2008/2009 | Y5: 9 Monate 2008/2009 | AC5: QIV 2008/2009 | AG5: GJ 2008/2009
H6: Anhang
I7: € Tsd. | M7: € Tsd. | Q7: € Tsd. | U7: € Tsd. | Y7: € Tsd. | AC7: € Tsd. | AG7: € Tsd.
A10: Umsatzerlöse | H10: (2o) | K10: 177901 | L10: 1 | O10: =+S10-K10 -> 158848 | P10: 1 | S10: 336749 | T10: 1 | W10: =+AA10-S10 -> 141785 | X10: 1 | AA10: 478534 | AB10: 1 | AE10: =+AI10-AA10 -> 161555 | AI10: 640089
A12: Umsatzkosten | K12: -88357 | L12: =+K12/-K$10 -> 0.4966638749 | O12: =+S12-K12 -> -78138 | P12: =+O12/-O$10 -> 0.4919042103 | S12: -166495 | T12: =+S12/-S$10 -> 0.4944186917 | W12: =+AA12-S12 -> -70882 | X12: =+W12/-W$10 -> 0.4999259442 | AA12: =-237527+150 -> -237377 | AB12: =+AA12/-AA$10 -> 0.4960504374 | AE12: =+AI12-AA12 -> -80422 | AI12: -317799
B14: Bruttoergebnis vom Umsatz | K14: =+K10+K12 -> 89544 | L14: =+K14/-K$10 -> -0.5033361251 | O14: =+O10+O12 -> 80710 | P14: =+O14/-O$10 -> -0.5080957897 | S14: =+S10+S12 -> 170254 | T14: =+S14/-S$10 -> -0.5055813083 | W14: =+W10+W12 -> 70903 | X14: =+W14/-W$10 -> -0.5000740558 | AA14: =+AA10+AA12 -> 241157 | AB14: =+AA14/-AA$10 -> -0.5039495626 | AE14: =+AE10+AE12 -> 81133 | AI14: =+AI10+AI12 -> 322290
A16: Vertriebs- und Marketingkosten | K16: =-41575-200 -> -41775 | L16: =+K16/-K$10 -> 0.2348216143 | O16: =+S16-K16 -> -38922 | P16: =+O16/-O$10 -> 0.2450266922 | S16: =-80547-150 -> -80697 | T16: =+S16/-S$10 -> 0.2396354555 | W16: =+AA16-S16 -> -34017 | X16: =+W16/-W$10 -> 0.2399195966 | AA16: =-114564-150 -> -114714 | AB16: =+AA16/-AA$10 -> 0.2397196437 | AE16: =+AI16-AA16 -> -35934 | AI16: -150648
A17: Allgemeine und Verwaltungskosten | K17: =-9089+41-100 -> -9148 | L17: 0.05142185822 | O17: -8202 | P17: 0.05163426672 | S17: =-17710+360 -> -17350 | T17: 0.05152205352 | W17: -7136 | X17: 0.05032972458 | AA17: -24486 | AB17: 0.05116877798 | AE17: -7887 | AI17: -32373
A18: Forschungs- und Entwicklungskosten | H18: (21) | K18: =-17299-100 -> -17399 | L18: 0.09780158628 | O18: -16230 | P18: 0.1021731467 | S18: =-33419-210 -> -33629 | T18: 0.0998636967 | W18: -15012 | X18: 0.105878619 | AA18: -48641 | AB18: 0.1016458601 | AE18: -14814 | AI18: -63455
A19: Sonstige Erträge | K19: 297 | L19: -0.00166946785 | O19: 172 | P19: -0.001082796132 | S19: 469 | T19: -0.001392728709 | W19: 126 | X19: -0.0008886694643 | AA19: 595 | AB19: -0.001243380826 | AE19: 241 | AI19: 836
A20: Sonstige Aufwendungen | K20: -32 | L20: 0.0001798753239 | O20: -133 | P20: 0.0008372784045 | S20: -165 | T20: 0.0004899791833 | W20: -131 | X20: 0.0009239341256 | AA20: -296 | AB20: 0.0006185558393 | AE20: -272 | AI20: -568
A21: Kursgewinne / (Kursverluste), netto | H21: (2b) (19) | L21: 0 | O21: 0 | P21: 0 | T21: 0 | W21: 0 | X21: 0 | AB21: 0 | AE21: 0
B23: Ergebnis vor Zinsen, Ertragsteuern, Abschreibungen und Amortisationen | I23: =+K26+I24 -> 25205 | M23: =+O26+M24 -> 21466 | Q23: =+S26+Q24 -> 46671 | U23: =+Y23-Q23 -> 18739 | Y23: =+Y24+AA26 -> 65410 | AC23: =+AE26+AC24 -> 27037 | AG23: =+AG24+AI26 -> 92447
B24: Abschreibungen und Amortisationen | I24: 3718 | M24: =+Q24-I24 -> 4071 | Q24: =7784+5 -> 7789 | U24: =+Y24-Q24 -> 4006 | Y24: 11795 | AC24: =+AG24-Y24 -> 4570 | AG24: 16365
B26: Ergebnis vor Zinsen und Ertragsteuern | K26: =+K14+K16+K17+K18+K19+K20+K21 -> 21487 | L26: =+K26/-K$10 -> -0.1207806589 | O26: =+O14+O16+O17+O18+O21+O19+O20 -> 17395 | P26: =+O26/-O$10 -> -0.1095072019 | S26: =+S14+S16+S17+S18+S19+S20+S21 -> 38882 | T26: =+S26/-S$10 -> -0.1154628522 | W26: =+W14+W16+W17+W18+W21+W19+W20 -> 14733 | X26: =+W26/-W$10 -> -0.1039108509 | AA26: =+AA14+AA16+AA17+AA18+AA19+AA20+AA21 -> 53615 | AB26: =+AA26/-AA$10 -> -0.1120401058 | AE26: =+AE14+AE16+AE17+AE18+AE21+AE19+AE20 -> 22467 | AI26: =+AI14+AI16+AI17+AI18+AI21+AI19+AI20 -> 76082
A28: At equity Ergebnis | K28: -11 | L28: =+K28/-K$10 -> 6.18321426e-05 | O28: =+S28-K28 -> -5 | P28: =+O28/-O$10 -> 3.147663175e-05 | S28: -16 | T28: =+S28/-S$10 -> 4.751313293e-05 | W28: =+AA28-S28 -> -8 | X28: =+W28/-W$10 -> 5.642345805e-05 | AA28: -24 | AB28: =+AA28/-AA$10 -> 5.015317616e-05 | AE28: =+AI28-AA28 -> -10 | AI28: -34
A29: Zinserträge | K29: 2539 | L29: =+K29/-K$10 -> -0.01427198273 | O29: =+S29-K29 -> 1567 | P29: =+O29/-O$10 -> -0.00986477639 | S29: 4106 | T29: =+S29/-S$10 -> -0.01219305774 | W29: =+AA29-S29 -> 778 | X29: =+W29/-W$10 -> -0.005487181296 | AA29: =5299-415 -> 4884 | AB29: =+AA29/-AA$10 -> -0.01020617135 | AE29: =+AI29-AA29 -> 394 | AI29: 5278
A30: Zinsaufwendungen | K30: -1238 | L30: =+K30/-K$10 -> 0.006958926594 | O30: =+S30-K30 -> -1217 | P30: =+O30/-O$10 -> 0.007661412168 | S30: -2455 | T30: =+S30/-S$10 -> 0.007290296333 | W30: =+AA30-S30 -> -1122 | X30: =+W30/-W$10 -> 0.007913389992 | AA30: -3577 | AB30: =+AA30/-AA$10 -> 0.007474912963 | AE30: =+AI30-AA30 -> -2424 | AI30: -6001
A31: Kursgewinne / (Kursverluste), netto | K31: -1057 | L31: =+K31/-K$10 -> 0.005941506793 | O31: =+S31-K31 -> 642 | P31: =+O31/-O$10 -> -0.004041599517 | S31: -415 | T31: =+S31/-S$10 -> 0.001232371885 | W31: =+AA31-S31 -> 337 | X31: =+W31/-W$10 -> -0.00237683817 | AA31: -78 | AB31: =+AA31/-AA$10 -> 0.0001629978225 | AE31: =+AI31-AA31 -> 726 | AI31: 648
A32: übriges Finanzergebnis | K32: 363 | L32: =+K32/-K$10 -> -0.002040460706 | O32: =+S32-K32 -> 379 | P32: =+O32/-O$10 -> -0.002385928687 | S32: 742 | T32: =+S32/-S$10 -> -0.002203421539 | W32: =+AA32-S32 -> 360 | X32: =+W32/-W$10 -> -0.002539055612 | AA32: 1102 | AB32: =+AA32/-AA$10 -> -0.002302866672 | AE32: =+AI32-AA32 -> 1540 | AI32: 2642
B34: Ergebnis vor Ertragsteuern | K34: =+K26+K28+K29+K30+K31+K32 -> 22083 | L34: =+K34/-K$10 -> -0.1241308368 | O34: =+O26+O28+O29+O30+O31+O32 -> 18761 | P34: =+O34/-O$10 -> -0.1181066176 | S34: =+S26+S28+S29+S30+S31+S32 -> 40844 | T34: =+S34/-S$10 -> -0.1212891501 | W34: =+W26+W29+W30+W32+W28+W31 -> 15078 | X34: =+W34/-W$10 -> -0.1063441126 | AA34: =+AA26+AA28+AA29+AA30+AA31+AA32 -> 55922 | AB34: =+AA34/-AA$10 -> -0.1168610799 | AE34: =+AE26+AE29+AE30+AE32+AE28+AE31 -> 22693 | AI34: =+AI26+AI29+AI30+AI32+AI28+AI31 -> 78615
A36: Ertragsteueraufwand | H36: (22) | K36: =-8298+122 -> -8176 | L36: =+K36/-K$10 -> 0.04595814526 | O36: =+S36-K36 -> -6388 | P36: =+O36/-O$10 -> 0.04021454472 | S36: =-14564 -> -14564 | T36: =+S36/-S$10 -> 0.04324882925 | W36: =+AA36-S36 -> -5110 | X36: =+W36/-W$10 -> 0.03604048383 | AA36: =-19820+145+1 -> -19674 | AB36: =+AA36/-AA$10 -> 0.04111306616 | AE36: =+AI36-AA36 -> -3839.8 | AI36: -23513.8
A38: Konzernergebnis | K38: =+K34+K36 -> 13907 | L38: =+K38/-K$10 -> -0.07817269155 | O38: =SUM(O34:O36) -> 12373 | P38: =+O38/-O$10 -> -0.07789207293 | S38: =+S34+S36 -> 26280 | T38: =+S38/-S$10 -> -0.07804032083 | W38: =SUM(W34:W36) -> 9968 | X38: =+W38/-W$10 -> -0.07030362873 | AA38: =+AA34+AA36 -> 36248 | AB38: =+AA38/-AA$10 -> -0.07574801373 | AE38: =SUM(AE34:AE36) -> 18853.2 | AI38: =SUM(AI34:AI36) -> 55101.2
A40: davon entfallen auf:
B41: Gesellschafter des Mutterunternehmens | K41: =+K38-K42 -> 12739 | L41: =+K41/-K$10 -> -0.07160724223 | O41: =+S41-K41 -> 10908 | P41: =+O41/-O$10 -> -0.06866941982 | S41: =+S38-S42 -> 23647 | T41: =+S41/-S$10 -> -0.0702214409 | W41: =+AA41-S41 -> 8807 | X41: =+W41/-W$10 -> -0.06211517438 | AA41: =+AA38-AA42 -> 32454 | AB41: =+AA41/-AA$10 -> -0.06781963246 | AE41: =+AI41-AA41 -> 18090.2 | AI41: =+AI38-AI42 -> 50544.2
B42: Minderheiten | K42: 1168 | L42: =+K42/-K$10 -> -0.006565449323 | O42: =+S42-K42 -> 1465 | P42: =+O42/-O$10 -> -0.009222653102 | S42: 2633 | T42: =+S42/-S$10 -> -0.007818879937 | W42: =+AA42-S42 -> 1161 | X42: =+W42/-W$10 -> -0.00818845435 | AA42: 3794 | AB42: =+AA42/-AA$10 -> -0.007928381264 | AE42: =+AI42-AA42 -> 763 | AI42: 4557
A44: Gewinn / (Verlust) je Aktie, der den Aktionären des Mutterunternehmens im Geschäftsjahr zusteht (in €):
B46: ="- Unverwässert" -> - Unverwässert | H46: 2 (q) | K46: =+K41/81309610*1000 -> 0.1566727475 | O46: =+O41/81309610*1000 -> 0.1341538841 | S46: =+S41/81309610*1000 -> 0.2908266317 | W46: =+W41/81309610*1000 -> 0.1083143801 | AA46: =+AA41/81309610*1000 -> 0.3991410117 | AE46: =+AE41/81309610*1000 -> 0.2224853864 | AI46: =+AI41/81309610*1000 -> 0.6216263982
A48: Der nachfolgende Konzernanhang ist integraler Bestandteil des ungeprüften Konzernabschlusses.

Sheet GuV 1213
A2: Carl Zeiss Meditec AG
A3: Konzerngewinn- und Verlustrechnung (IFRS)
I5: QI 2012/13 | M5: QII 2012/13 | Q5: 6 Monate 2012/13 | U5: QIII 2012/13 | Y5: 9 Monate 2012/13 | AC5: QIV 2012/13 | AG5: GJ 2012/13
H6: Anhang
I7: € Tsd. | M7: € Tsd. | Q7: € Tsd. | U7: € Tsd. | Y7: € Tsd. | AC7: € Tsd. | AG7: € Tsd.
A10: Umsatzerlöse | H10: (2o) | K10: 218999 | L10: 1 | O10: =+S10-K10 -> -218999 | P10: 1 | T10: 1 | W10: =+AA10-S10 -> 0 | X10: 1 | AB10: 1 | AE10: =+AI10-AA10 -> 0 | AF10: 1
A12: Umsatzkosten | K12: -101583 | L12: =+K12/-K$10 -> 0.4638514331 | O12: =+S12-K12 -> 101583 | P12: =+O12/-O$10 -> 0.4638514331 | T12: =+S12/-S$10 ->  | W12: =+AA12-S12 -> 0 | X12: =+W12/-W$10 ->  | AB12: =+AA12/-AA$10 ->  | AE12: =+AI12-AA12 -> 0 | AF12: =+AE12/-AE$10 -> 
B14: Bruttoergebnis vom Umsatz | K14: =+K10+K12 -> 117416 | L14: =+K14/-K$10 -> -0.5361485669 | O14: =+O10+O12 -> -117416 | P14: =+O14/-O$10 -> -0.5361485669 | S14: =+S10+S12 -> 0 | T14: =+S14/-S$10 ->  | W14: =+W10+W12 -> 0 | X14: =+W14/-W$10 ->  | AA14: =+AA10+AA12 -> 0 | AB14: =+AA14/-AA$10 ->  | AE14: =+AE10+AE12 -> 0 | AF14: =+AE14/-AE$10 ->  | AI14: =+AI10+AI12 -> 0
A16: Vertriebs- und Marketingkosten | K16: -53388 | L16: =+K16/-K$10 -> 0.2437819351 | O16: =+S16-K16 -> 53388 | P16: =+O16/-O$10 -> 0.2437819351 | T16: =+S16/-S$10 ->  | W16: =+AA16-S16 -> 0 | X16: =+W16/-W$10 ->  | AB16: =+AA16/-AA$10 ->  | AE16: =+AI16-AA16 -> 0 | AF16: =+AE16/-AE$10 -> 
A17: Allgemeine Verwaltungskosten | K17: -9583 | L17: 0.04375819068 | O17: 9583 | P17: 0.04375819068 | W17: 0 | AE17: 0
A18: Forschungs- und Entwicklungskosten | H18: (21) | K18: -23120 | L18: 0.1055712583 | O18: 23120 | P18: 0.1055712583 | W18: 0 | AE18: 0
A19: Sonstige Erträge | K19: 0 | L19: 0 | O19: 0 | P19: 0 | W19: 0 | AE19: 0
A20: Sonstige Aufwendungen | K20: 0 | L20: 0 | O20: 0 | P20: 0 | W20: 0 | AE20: 0
A21: Kursgewinne / (Kursverluste), netto | H21: (2b) (19) | L21: 0 | O21: 0 | P21: 0 | W21: 0 | AE21: 0
B23: Ergebnis vor Zinsen, Ertragsteuern, Abschreibungen und Amortisationen | I23: =+K26+I24 -> 35592 | M23: =+O26+M24 -> -35592 | Q23: =+S26+Q24 -> 0 | U23: =+Y23-Q23 -> 0 | Y23: =+Y24+AA26 -> 0 | AC23: =+AE26+AC24 -> 0 | AG23: =+AG24+AI26 -> 0
B24: Abschreibungen und Amortisationen | I24: 4267 | M24: =+Q24-I24 -> -4267 | U24: =+Y24-Q24 -> 0 | AC24: =+AG24-Y24 -> 0
B26: Ergebnis vor Zinsen und Ertragsteuern | K26: =+K14+K16+K17+K18+K19+K20+K21 -> 31325 | L26: =+K26/-K$10 -> -0.1430371828 | O26: =+O14+O16+O17+O18+O21+O19+O20 -> -31325 | P26: =+O26/-O$10 -> -0.1430371828 | S26: =+S14+S16+S17+S18+S19+S20+S21 -> 0 | T26: =+S26/-S$10 ->  | W26: =+W14+W16+W17+W18+W21+W19+W20 -> 0 | X26: =+W26/-W$10 ->  | AA26: =+AA14+AA16+AA17+AA18+AA19+AA20+AA21 -> 0 | AB26: =+AA26/-AA$10 ->  | AE26: =+AE14+AE16+AE17+AE18+AE21+AE19+AE20 -> 0 | AF26: =+AE26/-AE$10 ->  | AI26: =+AI14+AI16+AI17+AI18+AI21+AI19+AI20 -> 0
A28: At equity Ergebnis | K28: 0 | L28: =+K28/-K$10 -> 0 | O28: =+S28-K28 -> 0 | P28: =+O28/-O$10 -> 0 | T28: =+S28/-S$10 ->  | W28: =+AA28-S28 -> 0 | X28: =+W28/-W$10 ->  | AB28: =+AA28/-AA$10 ->  | AE28: =+AI28-AA28 -> 0 | AF28: =+AE28/-AE$10 -> 
A29: Zinserträge | K29: 701 | L29: =+K29/-K$10 -> -0.003200927858 | O29: =+S29-K29 -> -701 | P29: =+O29/-O$10 -> -0.003200927858 | T29: =+S29/-S$10 ->  | W29: =+AA29-S29 -> 0 | X29: =+W29/-W$10 ->  | AB29: =+AA29/-AA$10 ->  | AE29: =+AI29-AA29 -> 0 | AF29: =+AE29/-AE$10 -> 
A30: Zinsaufwendungen | K30: -1307 | L30: =+K30/-K$10 -> 0.005968063781 | O30: =+S30-K30 -> 1307 | P30: =+O30/-O$10 -> 0.005968063781 | T30: =+S30/-S$10 ->  | W30: =+AA30-S30 -> 0 | X30: =+W30/-W$10 ->  | AB30: =+AA30/-AA$10 ->  | AE30: =+AI30-AA30 -> 0 | AF30: =+AE30/-AE$10 -> 
A31: Kursgewinne / (Kursverluste), netto | K31: 6953 | L31: =+K31/-K$10 -> -0.03174900342 | O31: =+S31-K31 -> -6953 | P31: =+O31/-O$10 -> -0.03174900342 | T31: =+S31/-S$10 ->  | W31: =+AA31-S31 -> 0 | X31: =+W31/-W$10 ->  | AB31: =+AA31/-AA$10 ->  | AE31: =+AI31-AA31 -> 0 | AF31: =+AE31/-AE$10 -> 
A32: übriges Finanzergebnis | K32: 633 | L32: =+K32/-K$10 -> -0.002890424157 | O32: =+S32-K32 -> -633 | P32: =+O32/-O$10 -> -0.002890424157 | T32: =+S32/-S$10 ->  | W32: =+AA32-S32 -> 0 | X32: =+W32/-W$10 ->  | AB32: =+AA32/-AA$10 ->  | AE32: =+AI32-AA32 -> 0 | AF32: =+AE32/-AE$10 -> 
B34: Ergebnis vor Ertragsteuern | K34: =+K26+K28+K29+K30+K31+K32 -> 38305 | L34: =+K34/-K$10 -> -0.1749094745 | O34: =+O26+O28+O29+O30+O31+O32 -> -38305 | P34: =+O34/-O$10 -> -0.1749094745 | S34: =+S26+S28+S29+S30+S31+S32 -> 0 | T34: =+S34/-S$10 ->  | W34: =+W26+W29+W30+W32+W28+W31 -> 0 | X34: =+W34/-W$10 ->  | AA34: =+AA26+AA28+AA29+AA30+AA31+AA32 -> 0 | AB34: =+AA34/-AA$10 ->  | AE34: =+AE26+AE29+AE30+AE32+AE28+AE31 -> 0 | AF34: =+AE34/-AE$10 ->  | AI34: =+AI26+AI29+AI30+AI32+AI28+AI31 -> 0
A36: Ertragsteueraufwand | H36: (22) | K36: -13118 | L36: =+K36/-K$10 -> 0.05989981689 | O36: =+S36-K36 -> 13118 | P36: =+O36/-O$10 -> 0.05989981689 | T36: =+S36/-S$10 ->  | W36: =+AA36-S36 -> 0 | X36: =+W36/-W$10 ->  | AB36: =+AA36/-AA$10 ->  | AE36: =+AI36-AA36 -> 0 | AF36: =+AE36/-AE$10 -> 
A38: Konzernergebnis | K38: =+K34+K36 -> 25187 | L38: =+K38/-K$10 -> -0.1150096576 | O38: =SUM(O34:O36) -> -25187 | P38: =+O38/-O$10 -> -0.1150096576 | S38: =+S34+S36 -> 0 | T38: =+S38/-S$10 ->  | W38: =SUM(W34:W36) -> 0 | X38: =+W38/-W$10 ->  | AA38: =+AA34+AA36 -> 0 | AB38: =+AA38/-AA$10 ->  | AE38: =SUM(AE34:AE36) -> 0 | AF38: =+AE38/-AE$10 ->  | AI38: =SUM(AI34:AI36) -> 0
A40: davon entfallen auf:
B41: Gesellschafter des Mutterunternehmens | K41: =+K38-K42 -> 23327 | L41: =+K41/-K$10 -> -0.1065164681 | O41: =+S41-K41 -> -23327 | P41: =+O41/-O$10 -> -0.1065164681 | S41: =+S38-S42 -> 0 | T41: =+S41/-S$10 ->  | W41: =+AA41-S41 -> 0 | X41: =+W41/-W$10 ->  | AA41: =+AA38-AA42 -> 0 | AB41: =+AA41/-AA$10 ->  | AE41: =+AI41-AA41 -> 0 | AF41: =+AE41/-AE$10 ->  | AI41: =+AI38-AI42 -> 0
B42: Minderheiten | K42: 1860 | L42: =+K42/-K$10 -> -0.008493189467 | O42: =+S42-K42 -> -1860 | P42: =+O42/-O$10 -> -0.008493189467 | T42: =+S42/-S$10 ->  | W42: =+AA42-S42 -> 0 | X42: =+W42/-W$10 ->  | AB42: =+AA42/-AA$10 ->  | AE42: =+AI42-AA42 -> 0 | AF42: =+AE42/-AE$10 -> 
A44: Gewinn / (Verlust) je Aktie, der den Aktionären des Mutterunternehmens im Geschäftsjahr zusteht (in €):
B46: ="- Unverwässert" -> - Unverwässert | H46: 2 (q) | K46: =+K41/81309610*1000 -> 0.2868910575 | O46: =+O41/81309610*1000 -> -0.2868910575 | S46: =+S41/81309610*1000 -> 0 | W46: =+W41/81309610*1000 -> 0 | AA46: =+AA41/81309610*1000 -> 0 | AE46: =+AE41/81309610*1000 -> 0 | AI46: =+AI41/81309610*1000 -> 0
A48: Der nachfolgende Konzernanhang ist integraler Bestandteil des ungeprüften Konzernabschlusses.

Sheet GuV_D (2) (hidden)
A2: Carl Zeiss Meditec AG
A3: Konzerngewinn- und Verlustrechnung (IFRS) 1. Oktober 2008 bis 30. September 2009
J5: 4. Quartal 2008/2009 | O5: 4. Quartal 2007/2008 | T5: Geschäftsjahr 2008/2009 | Y5: Geschäftsjahr 2007/2008
H6: Anhang | J6: 1. Juli 2009 - 30. September 2009 | O6: 1. Juli 2008 - 30. September 2008 | T6: 1. Oktober 2008 - 30. September 2009 | Y6: 1. Oktober 2007 - 30. September 2008
J7: € Tsd. | O7: € Tsd. | T7: € Tsd. | Y7: € Tsd.
AE8: Y/Y abs | AF8: Y/Y rel
A10: Umsatzerlöse | H10: (2p) (4) | L10: =+'GuV 1314'!AE10 -> 0 | M10: =+L10/$L$10 ->  | Q10: =+#REF! ->  | R10: =+Q10/$Q$10 ->  | V10: =+'GuV 1314'!AI10 -> 0 | W10: =+V10/$V$10 ->  | AA10: =+#REF! ->  | AC10: =+AA10/$AA$10 ->  | AE10: =V10-AA10 ->  | AF10: =V10/AA10-1 -> 
A12: Umsatzkosten | L12: =+'GuV 1314'!AE12 -> 0 | M12: =+L12/-$L$10 ->  | Q12: =+#REF! ->  | R12: =+Q12/-$Q$10 ->  | V12: =+'GuV 1314'!AI12 -> 0 | W12: =+V12/-$V$10 ->  | AA12: =+#REF! ->  | AC12: =+AA12/-$AA$10 ->  | AE12: =V12-AA12 ->  | AF12: =V12/AA12-1 -> 
B14: Bruttoergebnis vom Umsatz | L14: =+L10+L12 -> 0 | M14: =+L14/$L$10 ->  | Q14: =+Q10+Q12 ->  | R14: =+Q14/$Q$10 ->  | V14: =+V10+V12 -> 0 | W14: =+V14/$V$10 ->  | AA14: =+AA10+AA12 ->  | AC14: =+AA14/$AA$10 ->  | AE14: =V14-AA14 ->  | AF14: =V14/AA14-1 -> 
A16: Vertriebs- und Marketingkosten | L16: =+'GuV 1314'!AE16 -> 0 | M16: =+L16/-$L$10 ->  | Q16: =+#REF! ->  | R16: =+Q16/-$Q$10 ->  | V16: =+'GuV 1314'!AI16 -> 0 | W16: =+V16/-$V$10 ->  | AA16: =+#REF! ->  | AC16: =+AA16/-$AA$10 ->  | AE16: =V16-AA16 ->  | AF16: =V16/AA16-1 -> 
A17: Allgemeine und Verwaltungskosten | L17: =+'GuV 1314'!AE17 -> 0 | M17: =+L17/-$L$10 ->  | Q17: =+#REF! ->  | R17: =+Q17/-$Q$10 ->  | V17: =+'GuV 1314'!AI17 -> 0 | W17: =+V17/-$V$10 ->  | AA17: =+#REF! ->  | AC17: =+AA17/-$AA$10 ->  | AE17: =V17-AA17 ->  | AF17: =V17/AA17-1 -> 
A18: Forschungs- und Entwicklungskosten | H18: (34) | L18: =+'GuV 1314'!AE18 -> 0 | M18: =+L18/-$L$10 ->  | Q18: =+#REF! ->  | R18: =+Q18/-$Q$10 ->  | V18: =+'GuV 1314'!AI18 -> 0 | W18: =+V18/-$V$10 ->  | AA18: =+#REF! ->  | AC18: =+AA18/-$AA$10 ->  | AE18: =V18-AA18 ->  | AF18: =V18/AA18-1 -> 
A19: Sonstige Erträge | H19: (5) | L19: =+'GuV 1314'!AE19 -> 0 | M19: =+L19/$L$10 ->  | Q19: =+#REF! ->  | R19: =+Q19/$Q$10 ->  | V19: =+'GuV 1314'!AI19 -> 0 | W19: =+V19/$V$10 ->  | AA19: =+#REF! ->  | AC19: =+AA19/$AA$10 ->  | AE19: =V19-AA19 ->  | AF19: =V19/AA19-1 -> 
A20: Sonstige Aufwendungen | H20: (6) | L20: =+'GuV 1314'!AE20 -> 0 | M20: =-L20/$L$10 ->  | Q20: =+#REF! ->  | R20: =+Q20/-$Q$10 ->  | V20: =+'GuV 1314'!AI20 -> 0 | W20: =+V20/$V$10 ->  | AA20: =+#REF! ->  | AC20: =+AA20/-$AA$10 -> 
A21: Kursgewinne / (Kursverluste), netto | H21: (2c) (30) | L21: =+'GuV 1314'!F21 -> 0 | M21: =+L21/$V$10 ->  | Q21: =+'GuV 1314'!K21 -> 0 | R21: =+Q21/-$Q$10 ->  | V21: =+'GuV 1314'!AA21 -> 0 | W21: =+V21/$V$10 ->  | AA21: =+#REF! ->  | AC21: =+AA21/$AA$10 ->  | AE21: =V21-AA21 ->  | AF21: =V21/AA21-1 -> 
B23: Ergebnis vor Zinsen, Ertragsteuern, Abschreibungen und Amortisationen | J23: =+'GuV 1314'!AC23 -> 0 | M23: =+J23/L10 ->  | O23: =+#REF! ->  | R23: =+O23/Q10 ->  | T23: =+'GuV 1314'!AG23 -> 0 | W23: =+T23/V10 ->  | Y23: =+#REF! ->  | AC23: =+Y23/AA10 ->  | AE23: =T23-Y23 ->  | AF23: =T23/Y23-1 -> 
B24: Abschreibungen und Amortisationen | J24: =-'GuV 1314'!AC24 -> 0 | O24: =-#REF! ->  | T24: =-'GuV 1314'!AG24 -> 0 | Y24: =-#REF! -> 
B26: Ergebnis vor Zinsen und Ertragsteuern | L26: =+L14+L16+L17+L18+L21+L19+L20 -> 0 | M26: =+L26/$L$10 ->  | Q26: =+Q14+Q16+Q17+Q18+Q21+Q19+Q20 ->  | R26: =+Q26/$Q$10 ->  | V26: =+V14+V16+V17+V18+V21+V19+V20 -> 0 | W26: =+V26/$V$10 ->  | AA26: =+AA14+AA16+AA17+AA18+AA21+AA19+AA20 ->  | AC26: =+AA26/$AA$10 ->  | AE26: =V26-AA26 ->  | AF26: =V26/AA26-1 -> 
A28: Ergebnis aus at-equity bewerteten Finanzanlagen | H28: (8) (9) | L28: =+'GuV 1314'!AE28 -> 0 | M28: =+L28/-$L$10 ->  | Q28: =+#REF! ->  | R28: =+Q28/-$Q$10 ->  | V28: =+'GuV 1314'!AI28 -> 0 | W28: =+V28/-$V$10 ->  | AA28: =+#REF! ->  | AC28: =+AA28/$AA$10 ->  | AE28: =V28-AA28 ->  | AF28: =T28/Y28-1 -> 
A29: Zinserträge | H29: (9) | L29: =+'GuV 1314'!AE29 -> 0 | M29: =+L29/$L$10 ->  | Q29: =+#REF! ->  | R29: =+Q29/$Q$10 ->  | V29: =+'GuV 1314'!AI29 -> 0 | W29: =+V29/$V$10 ->  | AA29: =+#REF! ->  | AC29: =+AA29/$AA$10 ->  | AE29: =V29-AA29 ->  | AF29: =V29/AA29-1 -> 
A30: Zinsaufwendungen | H30: (9) | L30: =+'GuV 1314'!AE30 -> 0 | M30: =+L30/-$L$10 ->  | Q30: =+#REF! ->  | R30: =+Q30/-$Q$10 ->  | V30: =+'GuV 1314'!AI30 -> 0 | W30: =+V30/-$V$10 ->  | AA30: =+#REF! ->  | AC30: =+AA30/-$AA$10 ->  | AE30: =V30-AA30 ->  | AF30: =V30/AA30-1 -> 
A31: Kursgewinne / (Kursverluste), netto | L31: =+'GuV 1314'!AE31 -> 0 | M31: =+L31/$L$10 ->  | Q31: =+#REF! ->  | R31: =+Q31/$Q$10 ->  | V31: =+'GuV 1314'!AI31 -> 0 | W31: =+V31/-$V$10 ->  | AA31: =+#REF! ->  | AC31: =+AA31/$AA$10 ->  | AE31: =V31-AA31 ->  | AF31: =V31/AA31-1 -> 
A32: Sonstiges Finanzergebnis | H32: (9) | L32: =+'GuV 1314'!AE32 -> 0 | M32: =+L32/$L$10 ->  | Q32: =+#REF! ->  | R32: =+Q32/$Q$10 ->  | V32: =+'GuV 1314'!AI32 -> 0 | W32: =+V32/$V$10 ->  | AA32: =+#REF! ->  | AC32: =+AA32/$AA$10 ->  | AE32: =V32-AA32 ->  | AF32: =V32/AA32-1 -> 
B34: Ergebnis vor Ertragsteuern | H34: (10) | L34: =+L26+L29+L30+L32+L28+L31 -> 0 | M34: =+L34/$L$10 ->  | Q34: =+Q26+Q29+Q30+Q32+Q28+Q31 ->  | R34: =+Q34/$Q$10 ->  | V34: =+V26+V29+V30+V32+V28+V31 -> 0 | W34: =+V34/$V$10 ->  | AA34: =+AA26+AA29+AA30+AA32+AA31+AA28 ->  | AC34: =+AA34/$AA$10 ->  | AE34: =V34-AA34 ->  | AF34: =V34/AA34-1 -> 
A36: Ertragsteueraufwand | H36: (10) | L36: =+'GuV 1314'!AE36 -> 0 | M36: =+L36/-$L$10 ->  | Q36: =+#REF! ->  | R36: =+Q36/-$Q$10 ->  | V36: =+'GuV 1314'!AI36 -> 0 | W36: =+V36/-$V$10 ->  | AA36: =+#REF! ->  | AC36: =+AA36/-$AA$10 ->  | AE36: =V36-AA36 ->  | AF36: =V36/AA36-1 -> 
A38: Konzernergebnis | L38: =SUM(L34:L36) -> 0 | M38: =+L38/$L$10 ->  | Q38: =SUM(Q34:Q36) ->  | R38: =+Q38/$Q$10 ->  | V38: =SUM(V34:V36) -> 0 | W38: =+V38/$V$10 ->  | AA38: =SUM(AA34:AA36) ->  | AC38: =+AA38/$AA$10 ->  | AE38: =V38-AA38 ->  | AF38: =V38/AA38-1 -> 
A40: davon entfallen auf:
B41: Gesellschafter des Mutterunternehmens | L41: =+'GuV 1314'!AE41 -> 0 | M41: =+L41/$L$10 ->  | Q41: =+#REF! ->  | R41: =+Q41/$Q$10 ->  | V41: =+'GuV 1314'!AI41 -> 0 | W41: =+V41/$V$10 ->  | AA41: =+#REF! ->  | AC41: =+AA41/$AA$10 ->  | AE41: =V41-AA41 ->  | AF41: =V41/AA41-1 -> 
B42: Minderheiten | L42: =+'GuV 1314'!AE42 -> 0 | M42: =+L42/$L$10 ->  | Q42: =+#REF! ->  | R42: =+Q42/$Q$10 ->  | V42: =+'GuV 1314'!AI42 -> 0 | W42: =+V42/$V$10 ->  | AA42: =+#REF! ->  | AC42: =+AA42/$AA$10 ->  | AE42: =V42-AA42 ->  | AF42: =V42/AA42-1 -> 
A44: Gewinn / (Verlust) je Aktie, der den Aktionären des Mutterunternehmens im Geschäftsjahr zusteht (in €):
B46: ="- Unverwässert / verwässert" -> - Unverwässert / verwässert | H46: (2r) (11) | L46: =+'GuV 1314'!AE46 -> 0 | Q46: =+#REF! ->  | V46: =+'GuV 1314'!AI46 -> 0 | AA46: =+#REF! ->  | AE46: =V46-AA46 ->  | AF46: =V46/AA46-1 -> 
A48: Der nachfolgende Konzernanhang ist integraler Bestandteil des Konzernabschlusses.

Sheet GuV_E (2) (hidden)
A2: Carl Zeiss Meditec AG
A3: Consolidated income statement (IFRS) for the period from 1 October 2008 to 30 September 2009
J5: 4th quarter 2008/2009 | O5: 4th quarter 2007/2008 | T5: Financial year 2008/2009 | Z5: Financial year 2007/2008
H6: Note | J6: 1 July 2009 - 30 September 2009 | O6: 1 July 2008 - 30 September 2008 | T6: 1 October 2008 - 30 September 2009 | Z6: 1 October 2007 - 30 September 2008
J7: ="€ '000" -> € '000 | O7: ="€ '000" -> € '000 | T7: ="€ '000" -> € '000 | Z7: ="€ '000" -> € '000
AF8: Y/Y abs | AG8: Y/Y rel
A10: Revenue | H10: =+#REF! ->  | L10: =+'GuV_D (2)'!L10 -> 0 | M10: =+L10/$L$10 ->  | Q10: =+'GuV_D (2)'!Q10 ->  | R10: =+Q10/$Q$10 ->  | V10: =+#REF! ->  | W10: =+V10/$V$10 ->  | AB10: =+#REF! ->  | AD10: =+AB10/$AB$10 ->  | AF10: =V10-AB10 ->  | AG10: =V10/AB10-1 -> 
A12: Cost of goods sold | L12: =+'GuV_D (2)'!L12 -> 0 | M12: =+L12/-$L$10 ->  | Q12: =+'GuV_D (2)'!Q12 ->  | R12: =+Q12/-$Q$10 ->  | V12: =+#REF! ->  | W12: =+V12/-$V$10 ->  | AB12: =+#REF! ->  | AD12: =+AB12/-$AB$10 ->  | AF12: =V12-AB12 ->  | AG12: =V12/AB12-1 -> 
B14: Gross profit | L14: =+L10+L12 -> 0 | M14: =+L14/$L$10 ->  | Q14: =+'GuV_D (2)'!Q14 ->  | R14: =+Q14/$Q$10 ->  | V14: =+#REF! ->  | W14: =+V14/$V$10 ->  | AB14: =+#REF! ->  | AD14: =+AB14/$AB$10 ->  | AF14: =V14-AB14 ->  | AG14: =V14/AB14-1 -> 
A16: Selling and marketing expenses | L16: =+'GuV_D (2)'!L16 -> 0 | M16: =+L16/-$L$10 ->  | Q16: =+'GuV_D (2)'!Q16 ->  | R16: =+Q16/-$Q$10 ->  | V16: =+#REF! ->  | W16: =+V16/-$V$10 ->  | AB16: =+#REF! ->  | AD16: =+AB16/-$AB$10 ->  | AF16: =V16-AB16 ->  | AG16: =V16/AB16-1 -> 
A17: General and administrative expenses | L17: =+'GuV_D (2)'!L17 -> 0 | M17: =+L17/-$L$10 ->  | Q17: =+'GuV_D (2)'!Q17 ->  | R17: =+Q17/-$Q$10 ->  | V17: =+#REF! ->  | W17: =+V17/-$V$10 ->  | AB17: =+#REF! ->  | AD17: =+AB17/-$AB$10 ->  | AF17: =V17-AB17 ->  | AG17: =V17/AB17-1 -> 
A18: Research and development expenses | H18: =+#REF! ->  | L18: =+'GuV_D (2)'!L18 -> 0 | M18: =+L18/-$L$10 ->  | Q18: =+'GuV_D (2)'!Q18 ->  | R18: =+Q18/-$Q$10 ->  | V18: =+#REF! ->  | W18: =+V18/-$V$10 ->  | AB18: =+#REF! ->  | AD18: =+AB18/-$AB$10 ->  | AF18: =V18-AB18 ->  | AG18: =V18/AB18-1 -> 
A19: Other income | H19: =+#REF! ->  | L19: =+'GuV_D (2)'!L19 -> 0 | M19: =+L19/$L$10 ->  | Q19: =+'GuV_D (2)'!Q19 ->  | R19: =+Q19/$Q$10 ->  | V19: =+#REF! ->  | W19: =+V19/$V$10 ->  | AB19: =+#REF! ->  | AD19: =+AB19/$AB$10 ->  | AF19: =V19-AB19 ->  | AG19: =V19/AB19-1 -> 
A20: Other expense | H20: =+#REF! ->  | L20: =+'GuV_D (2)'!L20 -> 0 | M20: =+L20/-$L$10 ->  | Q20: =+'GuV_D (2)'!Q20 ->  | R20: =+Q20/-$Q$10 ->  | V20: =+#REF! ->  | W20: =+V20/$V$10 ->  | AB20: =+#REF! ->  | AD20: =+AB20/-$AB$10 -> 
A21: Foreign currency gains / (losses), net | H21: =+#REF! ->  | L21: =+'GuV_D (2)'!L21 -> 0 | M21: =+L21/$V$10 ->  | Q21: =+#REF! ->  | R21: =+Q21/-$Q$10 ->  | V21: =+#REF! ->  | W21: =+V21/$V$10 ->  | AB21: =+#REF! ->  | AD21: =+AB21/$AB$10 ->  | AF21: =V21-AB21 ->  | AG21: =V21/AB21-1 -> 
B23: Earnings before interests, income taxes, depreciation and amortisation | J23: =+'GuV_D (2)'!J23 -> 0 | M23: =+J23/L10 ->  | O23: =+'GuV_D (2)'!O23 ->  | R23: =+O23/Q10 ->  | T23: =+#REF! ->  | W23: =V23/V10 ->  | Z23: =+#REF! ->  | AD23: =AB23/AB10 ->  | AF23: =V23-AB23 -> 0 | AG23: =V23/AB23-1 -> 
B24: Depreciation and amortisation | J24: =+'GuV_D (2)'!J24 -> 0 | O24: =+'GuV_D (2)'!O24 ->  | T24: =+#REF! ->  | Z24: =+#REF! -> 
B26: Earnings before interests and income taxes | L26: =+'GuV_D (2)'!L26 -> 0 | M26: =+L26/$L$10 ->  | Q26: =+'GuV_D (2)'!Q26 ->  | R26: =+Q26/$Q$10 ->  | V26: =+#REF! ->  | W26: =+V26/$V$10 ->  | AB26: =+#REF! ->  | AD26: =+AB26/$AB$10 ->  | AF26: =V26-AB26 ->  | AG26: =V26/AB26-1 -> 
A28: Results from investments accounted for using the equity method | H28: =+#REF! ->  | L28: =+'GuV_D (2)'!L28 -> 0 | M28: =+L28/-$L$10 ->  | Q28: =+'GuV_D (2)'!Q28 ->  | R28: =+Q28/-$Q$10 ->  | V28: =+#REF! ->  | W28: =+V28/-$V$10 ->  | AB28: 0 | AD28: =+AB28/$AB$10 ->  | AF28: =V28-AB28 ->  | AG28: =V28/AB28-1 -> 
A29: Interest income | H29: =+#REF! ->  | L29: =+'GuV_D (2)'!L29 -> 0 | M29: =+L29/$L$10 ->  | Q29: =+'GuV_D (2)'!Q29 ->  | R29: =+Q29/$Q$10 ->  | V29: =+#REF! ->  | W29: =+V29/$V$10 ->  | AB29: =+#REF! ->  | AD29: =+AB29/$AB$10 ->  | AF29: =V29-AB29 ->  | AG29: =V29/AB29-1 -> 
A30: Interest expense | H30: =+#REF! ->  | L30: =+'GuV_D (2)'!L30 -> 0 | M30: =+L30/-$L$10 ->  | Q30: =+'GuV_D (2)'!Q30 ->  | R30: =+Q30/-$Q$10 ->  | V30: =+#REF! ->  | W30: =+V30/-$V$10 ->  | AB30: =+#REF! ->  | AD30: =+AB30/-$AB$10 ->  | AF30: =V30-AB30 ->  | AG30: =V30/AB30-1 -> 
A31: Foreign currency gains / (losses), net | L31: =+'GuV_D (2)'!L31 -> 0 | M31: =+L31/$L$10 ->  | Q31: =+'GuV_D (2)'!Q31 ->  | R31: =+Q31/$Q$10 ->  | V31: =+#REF! ->  | W31: =+V31/-$V$10 ->  | AB31: =+#REF! ->  | AD31: =+AB31/$AB$10 ->  | AF31: =V31-AB31 ->  | AG31: =V31/AB31-1 -> 
A32: Other financial result | H32: =+#REF! ->  | L32: =+'GuV_D (2)'!L32 -> 0 | M32: =+L32/$L$10 ->  | Q32: =+'GuV_D (2)'!Q32 ->  | R32: =+Q32/$Q$10 ->  | V32: =+#REF! ->  | W32: =+V32/$V$10 ->  | AB32: =+#REF! ->  | AD32: =+AB32/$AB$10 ->  | AF32: =V32-AB32 ->  | AG32: =V32/AB32-1 -> 
B34: Earnings before income taxes | H34: =+#REF! ->  | L34: =+'GuV_D (2)'!L34 -> 0 | M34: =+L34/$L$10 ->  | Q34: =+'GuV_D (2)'!Q34 ->  | R34: =+Q34/$Q$10 ->  | V34: =+#REF! ->  | W34: =+V34/$V$10 ->  | AB34: =+#REF! ->  | AD34: =+AB34/$AB$10 ->  | AF34: =V34-AB34 ->  | AG34: =V34/AB34-1 -> 
A36: Income tax expense | H36: =+#REF! ->  | L36: =+'GuV_D (2)'!L36 -> 0 | M36: =+L36/-$L$10 ->  | Q36: =+'GuV_D (2)'!Q36 ->  | R36: =+Q36/-$Q$10 ->  | V36: =+#REF! ->  | W36: =+V36/-$V$10 ->  | AB36: =+#REF! ->  | AD36: =+AB36/-$AB$10 ->  | AF36: =V36-AB36 ->  | AG36: =V36/AB36-1 -> 
A38: Net income | L38: =+'GuV_D (2)'!L38 -> 0 | M38: =+L38/$L$10 ->  | Q38: =+'GuV_D (2)'!Q38 ->  | R38: =+Q38/$Q$10 ->  | V38: =+#REF! ->  | W38: =+V38/$V$10 ->  | AB38: =+#REF! ->  | AD38: =+AB38/$AB$10 ->  | AF38: =V38-AB38 ->  | AG38: =V38/AB38-1 -> 
A40: Attributable to:
B41: Shareholders of the parent company | L41: =+'GuV_D (2)'!L41 -> 0 | M41: =+L41/$L$10 ->  | Q41: =+'GuV_D (2)'!Q41 ->  | R41: =+Q41/$Q$10 ->  | V41: =+#REF! ->  | W41: =+V41/$V$10 ->  | AB41: =+#REF! ->  | AD41: =+AB41/$AB$10 ->  | AF41: =V41-AB41 ->  | AG41: =V41/AB41-1 -> 
B42: Minority interest | L42: =+'GuV_D (2)'!L42 -> 0 | M42: =+L42/$L$10 ->  | Q42: =+'GuV_D (2)'!Q42 ->  | R42: =+Q42/$Q$10 ->  | V42: =+#REF! ->  | W42: =+V42/$V$10 ->  | AB42: =+#REF! ->  | AD42: =+AB42/$AB$10 ->  | AF42: =V42-AB42 ->  | AG42: =V42/AB42-1 -> 
A44: Profit / (loss) per share, attributable to the shareholders of the parent company in the current financial year (€):
B46: ="- Basic / diluted" -> - Basic / diluted | H46: =+#REF! ->  | L46: =+'GuV_D (2)'!L46 -> 0 | Q46: =+'GuV_D (2)'!Q46 ->  | V46: =+#REF! ->  | AB46: =+#REF! ->  | AG46: =V46/AB46-1 -> 
A48: The following notes to the consolidated financial statements are an integral part of the consolidated financial statements.

Sheet GuV 0708 alt (hidden)
A2: Carl Zeiss Meditec AG
A3: Konzerngewinn- und Verlustrechnung (IFRS)
I5: QI 2007/2008 | M5: QII 2007/2008 | Q5: 6 Monate 2007/2008 | U5: QIII 2007/2008 | Y5: 9 Monate 2007/2008 | AC5: QIV 2007/2008 | AG5: GJ 2007/2008
H6: Anhang
I7: € Tsd. | M7: € Tsd. | Q7: € Tsd. | U7: € Tsd. | Y7: € Tsd. | AC7: € Tsd. | AG7: € Tsd.
A10: Umsatzerlöse | H10: (2o) | K10: 141760 | O10: =+S10-K10 -> 157659 | S10: 299419 | W10: =+AA10-S10 -> 147146 | AA10: 446565 | AE10: =+AI10-AA10 -> 153625 | AI10: 600190
A12: Umsatzkosten | K12: =-70969+240 -> -70729 | O12: =+S12-K12 -> -79418 | S12: =149030-299419+242 -> -150147 | W12: =+AA12-S12 -> -72452 | AA12: =224042-446565-1-75 -> -222599 | AE12: =+AI12-AA12 -> -74155 | AI12: =-295954-800 -> -296754
B14: Bruttoergebnis vom Umsatz | K14: =+K10+K12 -> 71031 | O14: =+O10+O12 -> 78241 | S14: =+S10+S12 -> 149272 | W14: =+W10+W12 -> 74694 | AA14: =+AA10+AA12 -> 223966 | AE14: =+AE10+AE12 -> 79470 | AI14: =+AI10+AI12 -> 303436
A16: Vertriebs- und Marketingkosten | K16: -34040 | O16: =+S16-K16 -> -35771 | S16: =-69953+142 -> -69811 | W16: =+AA16-S16 -> -35861 | AA16: -105672 | AE16: =+AI16-AA16 -> -36116 | AI16: -141788
A17: Allgemeine und Verwaltungskosten | K17: -8157 | O17: -7881 | S17: =-15609-429 -> -16038 | W17: -7459 | AA17: -23497 | AE17: -8772 | AI17: -32269
A18: Forschungs- und Entwicklungskosten | H18: (21) | K18: -14949 | O18: -16525 | S18: =-31519+45 -> -31474 | W18: -15460 | AA18: -46934 | AE18: -15028 | AI18: -61962
A19: Sonstige Erträge | K19: 434 | O19: 465 | S19: 899 | W19: 309 | AA19: 1208 | AE19: 388 | AI19: =1930-334 -> 1596
A20: Sonstige Aufwendungen | K20: -280 | O20: -384 | S20: -664 | W20: -119 | AA20: -783 | AE20: -18 | AI20: =-1135+334 -> -801
A21: Kursgewinne / (Kursverluste), netto | H21: (2b) (19) | K21: 429 | O21: 965 | S21: =1394 -> 1394 | W21: 586 | AA21: 1980 | AE21: -2362 | AI21: -382
B23: Ergebnis vor Zinsen, Ertragsteuern, Abschreibungen und Amortisationen | I23: =+K26-I24 -> 17115 | M23: =+O26-M24 -> 22674 | Q23: =+S26-Q24 -> 39789 | U23: =+Y23-Q23 -> 19774 | Y23: =+AA26-Y24 -> 59563 | AC23: =+AE26-AC24 -> 20994 | AG23: =+AI26-AG24 -> 80557
B24: Abschreibungen und Amortisationen | I24: -2647 | M24: =+Q24-I24 -> -3564 | Q24: -6211 | U24: =+Y24-Q24 -> -3084 | Y24: =-9295 -> -9295 | AC24: =+AG24-Y24 -> -3432 | AG24: -12727
B26: Ergebnis vor Zinsen und Ertragsteuern | K26: =+K14+K16+K17+K18+K21+K19+K20 -> 14468 | O26: =+O14+O16+O17+O18+O21+O19+O20 -> 19110 | S26: =+S14+S16+S17+S18+S21+S19+S20 -> 33578 | W26: =+W14+W16+W17+W18+W21+W19+W20 -> 16690 | AA26: =+AA14+AA16+AA17+AA18+AA21+AA19+AA20 -> 50268 | AE26: =+AE14+AE16+AE17+AE18+AE21+AE19+AE20 -> 17562 | AI26: =+AI14+AI16+AI17+AI18+AI21+AI19+AI20 -> 67830
A28: At equity Ergebnis | AE28: =+AI28-AA28 -> -8 | AI28: -8
A29: Zinserträge | K29: 2621 | O29: =+S29-K29 -> 2516 | S29: 5137 | W29: =+AA29-S29 -> 2346 | AA29: 7483 | AE29: =+AI29-AA29 -> 2291 | AI29: 9774
A30: Zinsaufwendungen | K30: -1297 | O30: =+S30-K30 -> -1409 | S30: -2706 | W30: =+AA30-S30 -> -1313 | AA30: -4019 | AE30: =+AI30-AA30 -> -1691 | AI30: -5710
A31: Zu- und Abschreibungen sowie Wertberichtigungen auf Finanzanlagen | K31: 1889 | O31: =+S31-K31 -> 488 | S31: 2377 | W31: =+AA31-S31 -> 389 | AA31: 2766 | AE31: =+AI31-AA31 -> 1080 | AI31: 3846
B34: Ergebnis vor Ertragsteuern | K34: =+K26+K29+K30+K31 -> 17681 | O34: =+O26+O29+O30+O31 -> 20705 | S34: =+S26+S29+S30+S31 -> 38386 | W34: =+W26+W29+W30+W31 -> 18112 | AA34: =+AA26+AA29+AA30+AA31 -> 56498 | AE34: =+AE26+AE29+AE30+AE31+AE28 -> 19234 | AI34: =+AI26+AI29+AI30+AI31+AI28 -> 75732
A36: Ertragsteueraufwand | H36: (22) | K36: =-5712-73 -> -5785 | O36: =+S36-K36 -> -6284 | S36: =-12569+500 -> -12069 | W36: =+AA36-S36 -> -5632 | AA36: =-17701 -> -17701 | AE36: =+AI36-AA36 -> -1790 | AI36: =-19751+260 -> -19491
A38: Konzernergebnis | K38: =SUM(K34:K36) -> 11896 | O38: =SUM(O34:O36) -> 14421 | S38: =SUM(S34:S36) -> 26317 | W38: =SUM(W34:W36) -> 12480 | AA38: =SUM(AA34:AA36) -> 38797 | AE38: =SUM(AE34:AE36) -> 17444 | AI38: =SUM(AI34:AI36) -> 56241
A40: davon entfallen auf:
B41: Gesellschafter des Mutterunternehmens | K41: =+K38-K42 -> 11589 | O41: =+S41-K41 -> 12894 | S41: =+S38-S42 -> 24483 | W41: =+AA41-S41 -> 11901 | AA41: =+AA38-AA42 -> 36384 | AE41: =+AI41-AA41 -> 17664 | AI41: =54588-540 -> 54048
B42: Minderheiten | K42: 307 | O42: =+S42-K42 -> 1527 | S42: 1834 | W42: =+AA42-S42 -> 579 | AA42: 2413 | AE42: =+AI42-AA42 -> -220 | AI42: =+AI38-AI41 -> 2193
A44: Gewinn / (Verlust) je Aktie, der den Aktionären des Mutterunternehmens im Geschäftsjahr zusteht (in €):
B46: ="- Unverwässert" -> - Unverwässert | H46: 2 (q) | K46: =+K41/81309610*1000 -> 0.1425292779 | O46: =+O41/81309610*1000 -> 0.1585790413 | S46: =+S41/81309610*1000 -> 0.3011083192 | W46: =+W41/81309610*1000 -> 0.1463664627 | AA46: =+AA41/81309610*1000 -> 0.4474747819 | AE46: =+AE41/32523444*1000 -> 0.5431159136 | AI46: =+AI41/81309610*1000 -> 0.6647184755
A48: Der nachfolgende Konzernanhang ist integraler Bestandteil des ungeprüften Konzernabschlusses. | S48: =+S16/S10 -> -0.2331548766 | W48: =+W16/W10 -> -0.2437103285
S49: =+S36/S34 -> -0.3144115042

Sheet GuV_VJ (hidden)
A2: Carl Zeiss Meditec AG
A3: Konzern-Gewinn- und Verlustrechnung (US GAAP)
J5: 1.95583 | T5: 1.95583
H7: 1. Quartal 2001/2002 | N7: 2. Quartal 2001/2002 | R7: 6-Monatsbericht
X8: Veränderung
L9: % | V9: %
H10: Tsd. Euro | J10: Tsd. Euro | N10: Tsd. Euro | P10: Tsd. Euro | R10: Tsd. Euro | T10: Tsd. Euro
A13: Umsatzerlöse, netto | J13: 46227 | L13: 1 | P13: =+T13-J13 -> 45270 | T13: 91497 | V13: 1 | X13: =+(T13/J13)-1 -> 0.979297813
A14: Umsatzkosten | J14: -29961 | L14: =-J14/J$13 -> 0.6481277176 | P14: =+T14-J14 -> -28536 | T14: -58497 | V14: =-T14/T$13 -> 0.6393324371 | X14: =+(T14/J14)-1 -> 0.9524381696
B16: Bruttoergebnis vom Umsatz | J16: =+J13+J14 -> 16266 | L16: =J16/J$13 -> 0.3518722824 | P16: =+P13+P14 -> 16734 | T16: =+T13+T14 -> 33000 | V16: =T16/T$13 -> 0.3606675629 | X16: =+(T16/J16)-1 -> 1.028771671
A18: Vertriebs- und Marketingkosten | J18: -7966 | L18: =-J18/J$13 -> 0.1723235339 | P18: =+T18-J18 -> -7093 | T18: -15059 | V18: =-T18/T$13 -> 0.1645846312 | X18: =+(T18/J18)-1 -> 0.8904092393
A19: Allgemeine und Verwaltungskosten | J19: =-1325 -> -1325 | L19: =-J19/J$13 -> 0.02866290263 | P19: =+T19-J19 -> -1868 | T19: =-3312+118+1 -> -3193 | V19: =-T19/T$13 -> 0.03489731904 | X19: =+(T19/J19)-1 -> 1.409811321
A20: Forschungs- und Entwicklungskosten | H20: =-4981 -> -4981 | N20: =+R20-H20 -> -4434 | R20: =-9177-238 -> -9415
B21: abzüglich erhaltene Zuschüsse | H21: 168 | J21: =+H20+H21 -> -4813 | L21: =-J21/J$13 -> 0.1041166418 | N21: =+R21-H21 -> 70 | P21: =+N20+N21 -> -4364 | R21: 238 | T21: =+R20+R21 -> -9177 | V21: =-T21/T$13 -> 0.1002983704 | X21: =+(T21/J21)-1 -> 0.9067109911
A23: Abschreibung auf Geschäfts- oder Firmenwert | J23: -58 | L23: =-J23/J$13 -> 0.001254678002 | P23: =+T23-J23 -> -60 | T23: -118 | V23: =-T23/T$13 -> 0.00128965977 | X23: =+(T23/J23)-1 -> 1.034482759
A24: Sonstige betriebliche Erträge / (Aufwendungen), netto | J24: =113 -> 113 | L24: =-J24/J$13 -> -0.002444458866 | P24: =+T24-J24 -> 174 | T24: =286+1 -> 287 | V24: =-T24/T$13 -> -0.003136714865 | X24: =+(T24/J24)-1 -> 1.539823009
A25: Kursgewinne / (Kursverluste), netto | J25: -962 | L25: =-J25/J$13 -> 0.02081034893 | P25: =+T25-J25 -> 679 | T25: -283 | V25: =-T25/T$13 -> 0.003092997585 | X25: =+(T25/J25)-1 -> -0.7058212058
B27: Betriebsergebnis | J27: =+J16+J18+J19+J21+J25+J23+J24 -> 1255 | L27: =-J27/J$13 -> -0.02714863608 | P27: =+P16+P18+P19+P21+P25+P23+P24 -> 4202 | T27: =+T16+T18+T19+T21+T25+T23+T24 -> 5457 | V27: =-T27/T$13 -> -0.05964129971 | X27: =+(T27/J27)-1 -> 3.348207171
B29: Aufwand für Stock Options | J29: 0 | P29: 0 | T29: 0
B31: Ergebnis vor Zinsergebnis und Ertragsteuern | J31: =+J27+J29 -> 1255 | L31: =J31/J$13 -> 0.02714863608 | P31: =+P27+P29 -> 4202 | T31: =+T27+T29 -> 5457 | V31: =T31/T$13 -> 0.05964129971
A33: Währungsgewinne / (-verluste) | J33: 0 | L33: =J33/J$13 -> 0 | P33: =+T33-J33 -> 0 | T33: 0 | V33: =T33/T$13 -> 0 | X33: =+(T33/J33)-1 -> 
A34: Zinserträge / (Zinsaufwendungen), netto | J34: =-816 -> -816 | L34: =-J34/J$13 -> 0.01765202155 | P34: =+T34-J34 -> -816 | T34: =-1632 -> -1632 | V34: =-T34/T$13 -> 0.01783665038 | X34: =+(T34/J34)-1 -> 1
A35: Zu- und Abschreibung sowie Wertberichtigung auf Finanzanlagen | J35: 0 | L35: =-J35/J$13 -> 0 | P35: =+T35-J35 -> 0 | T35: 0 | V35: =-T35/T$13 -> 0 | X35: =+(T35/J35)-1 -> 
B38: Ergebnis vor Ertragsteuern | J38: =+J31+J34+J35+J33 -> 439 | L38: =-J38/J$13 -> -0.009496614533 | P38: =+P31+P34+P35+P33 -> 3386 | T38: =+T31+T34+T35+T33 -> 3825 | V38: =-T38/T$13 -> -0.04180464933 | X38: =+(T38/J38)-1 -> 7.712984055
A41: Ertragsteuerertrag / (-aufwand) | J41: -271 | L41: =J41/J$13 -> -0.005862374803 | P41: =+T41-J41 -> -847 | T41: -1118 | V41: =T41/T$13 -> -0.01221897986 | X41: =+(T41/J41)-1 -> 3.125461255
A42: Auf konzernfremde Gesellschafter entfallende Ergebnisanteile | J42: 0 | P42: =+T42-J42 -> 0 | T42: 0
B44: Jahresüberschuss / (-fehlbetrag) | J44: =+J38+J41+J42 -> 168 | L44: =-J44/J$13 -> -0.00363423973 | P44: =+P38+P41+P42 -> 2539 | T44: =+T38+T41+T42 -> 2707 | V44: =-T44/T$13 -> -0.02958566948 | X44: =+(T44/J44)-1 -> 15.11309524
A46: Gewinn / (Verlust) pro Aktie (in Euro):
B48: Nicht verwässert | J48: =+J44/J55*1000 -> 0.008556890589 | P48: =+P44/P55*1000 -> 0.1293211024 | T48: =+T44/T55*1000 -> 0.137877993 | X48: =+(T48/J48)-1 -> 15.11309524
B50: Unter Berücksichtigung des Verwässerungseffektes | J50: =+J44/J57*1000 -> 0.008556890589 | P50: =+P44/P57*1000 -> 0.1293211024 | T50: =+T44/T57*1000 -> 0.137877993
A52: Gewichtete durchschnittliche Anzahl der
A53: während der Periode ausgegebenen Aktien:
B55: Nicht verwässert | J55: 19633300 | P55: 19633300 | T55: 19633300
B57: Unter Berücksichtigung des Verwässerungseffektes | J57: 19633300 | P57: =+P55 -> 19633300 | T57: 19633300

Sheet GuV_GJ (hidden)
A2: Carl Zeiss Meditec AG
A3: Konzern-Gewinn- und Verlustrechnung (US GAAP)
J5: 1.95583
H7: 1. Quartal 2002/2003 | N7: 2. Quartal 2002/2003 | R7: 6-Monatsbericht
L9: %
H10: Tsd. Euro | J10: Tsd. Euro | N10: Tsd. Euro | P10: Tsd. Euro | R10: Tsd. Euro | T10: Tsd. Euro
A13: Umsatzerlöse, netto | J13: 62362 | L13: 1 | P13: =+T13-J13 -> 61747 | T13: 124109
A14: Umsatzkosten | J14: -37244 | L14: =-J14/J$13 -> 0.5972226677 | P14: =+T14-J14 -> -34924 | T14: -72168
B16: Bruttoergebnis vom Umsatz | J16: =+J13+J14 -> 25118 | K16: =+J16/J13 -> 0.4027773323 | L16: =J16/J$13 -> 0.4027773323 | P16: =+P13+P14 -> 26823 | Q16: =+P16/P13 -> 0.4344016713 | T16: =+T13+T14 -> 51941 | U16: =+T16/T13 -> 0.4185111475
A18: Vertriebs- und Marketingkosten | J18: -10805 | L18: =-J18/J$13 -> 0.1732625637 | P18: =+T18-J18 -> -11716 | T18: -22521
A19: Allgemeine und Verwaltungskosten | J19: -2569 | L19: =-J19/J$13 -> 0.04119495847 | P19: =+T19-J19 -> -3452 | T19: -6021
A20: Forschungs- und Entwicklungskosten | H20: -5929 | N20: =+R20-H20 -> -6731 | R20: =-11666-994 -> -12660
B21: abzüglich erhaltene Zuschüsse | H21: 265 | J21: =+H20+H21 -> -5664 | L21: =-J21/J$13 -> 0.09082454059 | N21: =+R21-H21 -> 729 | P21: =+N20+N21 -> -6002 | R21: 994 | T21: =+R20+R21 -> -11666
A23: Abschreibung auf Geschäfts- oder Firmenwert | J23: 0 | L23: =-J23/J$13 -> 0 | P23: 0 | T23: 0
A24: Sonstige betriebliche Erträge / (Aufwendungen), netto | J24: 81 | L24: =-J24/J$13 -> -0.0012988679 | P24: =+T24-J24 -> 34 | T24: =117-2 -> 115
A25: Kursgewinne / (Kursverluste), netto | J25: =-315 -> -315 | L25: =-J25/J$13 -> 0.005051152946 | P25: =+T25-J25 -> -394 | T25: -709
B27: Betriebsergebnis | J27: =+J16+J18+J19+J21+J25+J23+J24 -> 5846 | L27: =-J27/J$13 -> -0.09374298451 | P27: =+P16+P18+P19+P21+P25+P23+P24 -> 5293 | Q27: =+P27/P13 -> 0.08572076376 | T27: =+T16+T18+T19+T21+T25+T23+T24 -> 11139
B29: Aufwand für Stock Options | J29: 0 | P29: 0 | T29: 0
B31: Ergebnis vor Zinsergebnis und Ertragsteuern | J31: =+J27+J29 -> 5846 | L31: =J31/J$13 -> 0.09374298451 | P31: =+P27+P29 -> 5293 | T31: =+T27+T29 -> 11139
A33: Währungsgewinne / (-verluste) | J33: 0 | L33: =J33/J$13 -> 0 | P33: =+T33-J33 -> 0 | T33: 0
A34: Zinserträge / (Zinsaufwendungen), netto | J34: =-642 -> -642 | L34: =-J34/J$13 -> 0.01029473077 | P34: =+T34-J34 -> -556 | T34: -1198
A35: Zu- und Abschreibung sowie Wertberichtigung auf Finanzanlagen | J35: 31 | L35: =-J35/J$13 -> -0.0004970975915 | P35: =+T35-J35 -> 31 | T35: 62
B38: Ergebnis vor Ertragsteuern | J38: =+J31+J34+J35+J33 -> 5235 | L38: =-J38/J$13 -> -0.08394535134 | P38: =+P31+P34+P35+P33 -> 4768 | T38: =+T31+T34+T35+T33 -> 10003
A41: Ertragsteuerertrag / (-aufwand) | J41: -2522 | L41: =J41/J$13 -> -0.04044129438 | P41: =+T41-J41 -> -2931 | T41: -5453
A42: Auf konzernfremde Gesellschafter entfallende Ergebnisanteile | J42: -181 | P42: =+T42-J42 -> -1323 | T42: -1504
B44: Jahresüberschuss / (-fehlbetrag) | J44: =+J38+J41+J42 -> 2532 | L44: =-J44/J$13 -> -0.04060164844 | P44: =+P38+P41+P42 -> 514 | T44: =+T38+T41+T42 -> 3046
A46: Gewinn / (Verlust) pro Aktie (in Euro):
B48: Nicht verwässert | J48: =+J44/J55*1000 -> 0.09801302969 | P48: =+P44/P55*1000 -> 0.01989679987 | T48: =+T44/T55*1000 -> 0.1179098296
B50: Unter Berücksichtigung des Verwässerungseffektes | J50: =+J44/J57*1000 -> 0.09801302969 | P50: =+P44/P57*1000 -> 0.01989679987 | T50: =+T44/T57*1000 -> 0.1179098296
A52: Gewichtete durchschnittliche Anzahl der
A53: während der Periode ausgegebenen Aktien:
B55: Nicht verwässert | J55: 25833300 | P55: 25833300 | T55: 25833300
B57: Unter Berücksichtigung des Verwässerungseffektes | J57: 25833300 | P57: 25833300 | T57: 25833300

Sheet IS-Deutsch_Euro (hidden)
A2: Carl-Zeiss-Meditec AG
A3: Konzern-Gewinn- und Verlustrechnung
A4: für die Quartale zum 30. September 2001 und 2002
K5: 1.95583 | S5: 1.95583 | Y5: 1.95583 | AE5: 1.95583
I7: QIV | Q7: QIV | W7: 12-Monatsbericht | AC7: 12-Monatsbericht
I8: 1. Juli - 30. September | Q8: 1. Juli - 30. September | W8: 1. Oktober - 30. Sept | AC8: 1. Oktober - 30. Sept
I9: 2001 | M9: % | Q9: 2002 | U9: % | W9: 2001 | AA9: % | AC9: 2002 | AG9: %
I10: TEuro | K10: TEuro | Q10: TEuro | S10: TEuro | W10: TEuro | Y10: TEuro | AC10: TEuro | AE10: TEuro
A13: Umsatzerlöse, netto | K13: =+'GJ 00_01'!AB13 -> 0 | M13: 1 | S13: =+'GJ 01_02'!AO13 -> 0 | U13: 1 | Y13: =+'GJ 00_01'!AH13 -> 0 | AA13: 1 | AE13: =+'GJ 01_02'!AU13 -> 0 | AG13: 1
A14: Umsatzkosten | K14: =+'GJ 00_01'!AB14 -> 0 | M14: =-K14/K$13 ->  | S14: =+'GJ 01_02'!AO14 -> 0 | U14: =-S14/S$13 ->  | Y14: =+'GJ 00_01'!AH14 -> 0 | AA14: =-Y14/Y$13 ->  | AE14: =+'GJ 01_02'!AU14 -> 0 | AG14: =-AE14/AE$13 -> 
B16: Bruttoergebnis vom Umsatz | K16: =+K13+K14 -> 0 | M16: =K16/K$13 ->  | S16: =+S13+S14 -> 0 | U16: =S16/S$13 ->  | Y16: =+Y13+Y14 -> 0 | AA16: =Y16/Y$13 ->  | AE16: =+AE13+AE14 -> 0 | AG16: =AE16/AE$13 -> 
A18: Vertriebs- und Marketingkosten | K18: =+'GJ 00_01'!AB18 -> 0 | M18: =-K18/K$13 ->  | S18: =+'GJ 01_02'!AO18 -> 0 | U18: =-S18/S$13 ->  | Y18: =+'GJ 00_01'!AH18 -> 0 | AA18: =-Y18/Y$13 ->  | AE18: =+'GJ 01_02'!AU18 -> 0 | AG18: =-AE18/AE$13 -> 
A19: Allgemeine und Verwaltungskosten | K19: =+'GJ 00_01'!AB19 -> 0 | M19: =-K19/K$13 ->  | S19: =+'GJ 01_02'!AO19 -> 0 | U19: =-S19/S$13 ->  | Y19: =+'GJ 00_01'!AH19 -> 0 | AA19: =-Y19/Y$13 ->  | AE19: =+'GJ 01_02'!AU19 -> 0 | AG19: =-AE19/AE$13 -> 
A20: Forschungs- und Entwicklungskosten | I20: =+'GJ 00_01'!Z20 -> 0 | Q20: =+'GJ 01_02'!AM20 -> 0 | W20: =+'GJ 00_01'!AF20 -> 0 | AC20: =+'GJ 01_02'!AS20 -> 0
A21: Abzüglich erhaltene Zuschüsse | I21: =+'GJ 00_01'!Z21 -> 0 | K21: =+I20+I21 -> 0 | M21: =-K21/K$13 ->  | Q21: =+'GJ 01_02'!AM21 -> 0 | S21: =+Q20+Q21 -> 0 | U21: =-S21/S$13 ->  | W21: =+'GJ 00_01'!AF21 -> 0 | Y21: =+W20+W21 -> 0 | AA21: =-Y21/Y$13 ->  | AC21: =+'GJ 01_02'!AS21 -> 0 | AE21: =+AC20+AC21 -> 0 | AG21: =-AE21/AE$13 -> 
A23: Abschreibung auf Geschäfts- und Firmenwert | K23: =+'GJ 00_01'!AB23 -> 0 | M23: =-K23/K$13 ->  | S23: =+'GJ 01_02'!AO23 -> 0 | U23: =-S23/S$13 ->  | Y23: =+'GJ 00_01'!AH23 -> 0 | AA23: =-Y23/Y$13 ->  | AE23: =+'GJ 01_02'!AU23 -> 0 | AG23: =-AE23/AE$13 -> 
A24: Sonstige betriebliche Erträge und Aufwendungen, netto | K24: =+'GJ 00_01'!AB24 -> 0 | M24: =K24/K$13 ->  | S24: =+'GJ 01_02'!AO24 -> 0 | U24: =-S24/S$13 ->  | Y24: =+'GJ 00_01'!AH24 -> 0 | AA24: =Y24/Y$13 ->  | AE24: =+'GJ 01_02'!AU24 -> 0 | AG24: =-AE24/AE$13 -> 
A25: Kursgewinne / Kursverluste, netto | K25: =+'GJ 00_01'!AB25 -> 0 | M25: =-K25/K$13 ->  | S25: =+'GJ 01_02'!AO25 -> 0 | U25: =S25/S$13 ->  | Y25: =+'GJ 00_01'!AH25 -> 0 | AA25: =-Y25/Y$13 ->  | AE25: =+'GJ 01_02'!AU25 -> 0 | AG25: =-AE25/AE$13 -> 
B27: Betriebsergebnis | K27: =+K16+K18+K19+K21+K25+K23+K24 -> 0 | M27: =K27/K$13 ->  | S27: =+S16+S18+S19+S21+S25+S23+S24 -> 0 | U27: =S27/S$13 ->  | Y27: =+Y16+Y18+Y19+Y21+Y25+Y23+Y24 -> 0 | AA27: =-Y27/Y$13 ->  | AE27: =+AE16+AE18+AE19+AE21+AE25+AE23+AE24 -> 0 | AG27: =-AE27/AE$13 -> 
B29: Aufwand für Stock Options | K29: 0 | S29: 0 | Y29: 0 | AE29: 0
B31: Ergebnis vor Zinsergebnis und Ertragsteuern | K31: =+K27+K29 -> 0 | M31: =K31/K$13 ->  | S31: =+S27+S29 -> 0 | U31: =S31/S$13 ->  | Y31: =+Y27+Y29 -> 0 | AA31: =Y31/Y$13 ->  | AE31: =+AE27+AE29 -> 0 | AG31: =AE31/AE$13 -> 
B33: Währungsgewinne/ -verluste | K33: =+'GJ 00_01'!AB33 -> 0 | S33: =+'GJ 01_02'!AO33 -> 0 | Y33: =+'GJ 00_01'!AH33 -> 0 | AE33: =+'GJ 01_02'!AU33 -> 0 | AG33: =AE33/AE$13 -> 
B34: Zinserträge / Zinsaufwendungen netto | K34: =+'GJ 00_01'!AB34 -> 0 | M34: =K34/K$13 ->  | S34: =+'GJ 01_02'!AO34 -> 0 | U34: =S34/S$13 ->  | Y34: =+'GJ 00_01'!AH34 -> 0 | AA34: =Y34/Y$13 ->  | AE34: =+'GJ 01_02'!AU34 -> 0 | AG34: =-AE34/AE$13 -> 
B35: Abschreibung und Wertberichtigung auf Finanzanlagen | K35: =+'GJ 00_01'!AB35 -> 0 | S35: =+'GJ 01_02'!AO35 -> 0 | U35: =-S35/S$13 ->  | Y35: =+'GJ 00_01'!AH35 -> 0 | AA35: =-Y35/Y$13 ->  | AE35: =+'GJ 01_02'!AU35 -> 0 | AG35: =-AE35/AE$13 -> 
B38: Ergebnis vor Ertragsteuern | K38: =+K31+K34 -> 0 | M38: =K38/K$13 ->  | S38: =+S31+S34+S35+S33 -> 0 | U38: =S38/S$13 ->  | Y38: =+Y31+Y34+Y35 -> 0 | AA38: =-Y38/Y$13 ->  | AE38: =+AE31+AE34+AE35+AE33 -> 0 | AG38: =-AE38/AE$13 -> 
A41: Außerordentliches Ergebnis | S41: =+'GJ 01_02'!AO40 -> 0 | AE41: =+'GJ 01_02'!AU40 -> 0 | AG41: =AE41/AE$13 -> 
A42: Ertragsteuerertrag (-aufwand) | K42: =+'GJ 00_01'!AB41 -> 0 | M42: =-K42/K$13 ->  | S42: =+'GJ 01_02'!AO41 -> 0 | U42: =-S42/S$13 ->  | Y42: =+'GJ 00_01'!AH41 -> 0 | AA42: =Y42/Y$13 ->  | AE42: =+'GJ 01_02'!AU41 -> 0 | AG42: =AE42/AE$13 -> 
B44: Jahresüberschuss | K44: =+K38+K42 -> 0 | M44: =K44/K$13 ->  | S44: =+S38+S42+S41 -> 0 | U44: =S44/S$13 ->  | Y44: =+Y38+Y42 -> 0 | AA44: =-Y44/Y$13 ->  | AE44: =+AE38+AE42+AE41 -> 0 | AG44: =-AE44/AE$13 -> 
A46: Gewinn / Verlust pro Aktie (in Euro):
B48: Nicht verwässert | K48: =+K44/K55*1000 ->  | S48: =+S44/S55*1000 ->  | Y48: =+Y44/Y55*1000 ->  | AE48: =+AE44/AE55*1000 -> 
B50: Unter Berücksichtigung des Verwässerungseffektes | K50: =+K44/K57*1000 ->  | S50: =+S44/S57*1000 ->  | Y50: =+Y44/Y57*1000 ->  | AE50: =+AE44/AE57*1000 -> 
A52: Gewichtete durchschnittliche Anzahl der
A53: während der Periode ausgegebenen Aktien:
B55: Nicht verwässert
B57: Unter Berücksichtigung des Verwässerungseffektes
A59: Auf die nachfolgenden Erläuterungen im Anhang wird verwiesen | Y59: =IF(Y44='GJ 00_01'!AH43,"","Error") ->  | AE59: =IF(AE44='GJ 01_02'!AI43,"","Error") -> 

Sheet GJ 00_01 (hidden)
A2: Asclepion-Meditec AG
A3: Konzern-Gewinn- und Verlustrechnung
A4: Geschäftsjahr 2000/2001
J5: 1.95583 | P5: 1.95583 | V5: 1.95583 | AB5: 1.95583 | AH5: 1.95583
H7: QI | N7: QII | T7: QIII | Z7: QIV | AF7: aufgelaufen
H8: 31. Dezember | N8: 31. März | T8: 30. Juni | Z8: 30. September
H9: 2000 | L9: % | N9: 2001 | R9: % | T9: 2001 | X9: % | Z9: 2001 | AD9: % | AF9: 2001 | AJ9: %
H10: TEuro | J10: TEuro | N10: TEuro | P10: TEuro | T10: TEuro | V10: TEuro | Z10: TEuro | AB10: TEuro | AF10: TEuro | AH10: TEuro
A13: Umsatzerlöse, netto | L13: 1 | R13: 1 | X13: 1 | AD13: 1 | AH13: =+J13+P13+V13+AB13 -> 0 | AJ13: 1
A14: Umsatzkosten | L14: =-J14/J$13 ->  | R14: =-P14/P$13 ->  | X14: =-V14/V$13 ->  | AD14: =-AB14/AB$13 ->  | AH14: =+J14+P14+V14+AB14 -> 0 | AJ14: =-AH14/AH$13 -> 
B16: Bruttoergebnis vom Umsatz | J16: =+J13+J14 -> 0 | L16: =J16/J$13 ->  | P16: =+P13+P14 -> 0 | R16: =P16/P$13 ->  | V16: =+V13+V14 -> 0 | X16: =V16/V$13 ->  | AB16: =+AB13+AB14 -> 0 | AD16: =AB16/AB$13 ->  | AH16: =+AH13+AH14 -> 0 | AJ16: =AH16/AH$13 -> 
A18: Vertriebs- und Marketingkosten | L18: =-J18/J$13 ->  | R18: =-P18/P$13 ->  | X18: =-V18/V$13 ->  | AD18: =-AB18/AB$13 ->  | AH18: =+J18+P18+V18+AB18 -> 0 | AJ18: =-AH18/AH$13 -> 
A19: Allgemeine und Verwaltungskosten | L19: =-J19/J$13 ->  | R19: =-P19/P$13 ->  | X19: =-V19/V$13 ->  | AD19: =-AB19/AB$13 ->  | AF19: =+H19+N19+T19+Z19 -> 0 | AH19: =+J19+P19+V19+AB19 -> 0 | AJ19: =-AH19/AH$13 -> 
A20: Forschungs- und Entwicklungskosten | AF20: =+H20+N20+T20+Z20 -> 0 | AH20: =+J20+P20+V20+AB20 -> 0
A21: Abzüglich erhaltene Zuschüsse | J21: =+H20+H21 -> 0 | L21: =-J21/J$13 ->  | P21: =+N20+N21 -> 0 | R21: =-P21/P$13 ->  | V21: =+T20+T21 -> 0 | X21: =-V21/V$13 ->  | AB21: =+Z20+Z21 -> 0 | AD21: =-AB21/AB$13 ->  | AF21: =+H21+N21+T21+Z21 -> 0 | AH21: =+AF20+AF21 -> 0 | AJ21: =-AH21/AH$13 -> 
A23: Abschreibung auf Geschäfts- und Firmenwert | L23: =-J23/J$13 ->  | R23: =-P23/P$13 ->  | X23: =-V23/V$13 ->  | AD23: =-AB23/AB$13 ->  | AH23: =+J23+P23+V23+AB23 -> 0 | AJ23: =-AH23/AH$13 -> 
A24: Sonstige betriebliche Erträge und Aufwendungen, netto | L24: =J24/J$13 ->  | R24: =P24/P$13 ->  | X24: =-V24/V$13 ->  | AD24: =-AB24/AB$13 ->  | AH24: =+J24+P24+V24+AB24 -> 0 | AJ24: =-AH24/AH$13 -> 
A25: Kursgewinne / Kursverluste, netto | L25: =-J25/J$13 ->  | R25: =-P25/P$13 ->  | X25: =V25/V$13 ->  | AD25: =AB25/AB$13 ->  | AH25: =+J25+P25+V25+AB25 -> 0 | AJ25: =AH25/AH$13 -> 
B27: Betriebsergebnis | J27: =+J16+J18+J19+J21+J25+J23+J24 -> 0 | L27: =J27/J$13 ->  | P27: =+P16+P18+P19+P21+P25+P23+P24 -> 0 | R27: =P27/P$13 ->  | V27: =+V16+V18+V19+V21+V25+V23+V24 -> 0 | X27: =V27/V$13 ->  | AB27: =+AB16+AB18+AB19+AB21+AB25+AB23+AB24 -> 0 | AD27: =AB27/AB$13 ->  | AH27: =+AH16+AH18+AH19+AH21+AH25+AH23+AH24 -> 0 | AJ27: =AH27/AH$13 -> 
B29: Aufwand für Stock Options | J29: 0 | P29: 0 | V29: 0 | AB29: 0 | AH29: 0
B31: Ergebnis vor Zinsergebnis und Ertragsteuern | J31: =+J27+J29 -> 0 | L31: =J31/J$13 ->  | P31: =+P27+P29 -> 0 | R31: =P31/P$13 ->  | V31: =+V27+V29 -> 0 | X31: =V31/V$13 ->  | AB31: =+AB27+AB29 -> 0 | AD31: =AB31/AB$13 ->  | AH31: =+AH27+AH29 -> 0 | AJ31: =AH31/AH$13 -> 
B33: Währungsgewinne/ -verluste | J33: 0 | V33: 0 | AH33: =+J33+P33+V33+AB33 -> 0
B34: Zinserträge / Zinsaufwendungen netto | L34: =J34/J$13 ->  | R34: =P34/P$13 ->  | X34: =V34/V$13 ->  | AD34: =AB34/AB$13 ->  | AH34: =+J34+P34+V34+AB34 -> 0 | AJ34: =AH34/AH$13 -> 
B35: Abschreibung und Wertberichtigung auf Finanzanlagen | X35: =-V35/V$13 ->  | AD35: =-AB35/AB$13 ->  | AH35: =+J35+P35+V35+AB35 -> 0 | AJ35: =-AH35/AH$13 -> 
B38: Ergebnis vor Ertragsteuern | J38: =+J31+J34 -> 0 | L38: =J38/J$13 ->  | P38: =+P31+P34 -> 0 | R38: =P38/P$13 ->  | V38: =+V31+V34+V35 -> 0 | X38: =V38/V$13 ->  | AB38: =+AB31+AB34+AB35 -> 0 | AD38: =AB38/AB$13 ->  | AH38: =+AH31+AH34+AH35 -> 0 | AJ38: =AH38/AH$13 -> 
A41: Ertragsteuerertrag (-aufwand) | L41: =-J41/J$13 ->  | R41: =-P41/P$13 ->  | X41: =-V41/V$13 ->  | AD41: =-AB41/AB$13 ->  | AH41: =+J41+P41+V41+AB41 -> 0 | AJ41: =-AH41/AH$13 -> 
B43: Jahresüberschuss | J43: =+J38+J41 -> 0 | L43: =J43/J$13 ->  | P43: =+P38+P41 -> 0 | R43: =P43/P$13 ->  | V43: =+V38+V41 -> 0 | X43: =V43/V$13 ->  | AB43: =+AB38+AB41 -> 0 | AD43: =AB43/AB$13 ->  | AH43: =+AH38+AH41 -> 0 | AJ43: =AH43/AH$13 -> 
A45: Gewinn / Verlust pro Aktie (in Euro):
B47: Nicht verwässert | J47: =+J43/J54*1000 ->  | P47: =+P43/P54*1000 ->  | V47: =+V43*1000/$V$54 ->  | AH47: =+AH43*1000/$AH$54 -> 0
B49: Unter Berücksichtigung des Verwässerungseffektes | J49: =+J43/J56*1000 ->  | P49: =+P43/P56*1000 ->  | V49: =+V43*1000/$V$56 ->  | AH49: =+AH43*1000/$AH$56 -> 0
A51: Gewichtete durchschnittliche Anzahl der
A52: während der Periode ausgegebenen Aktien:
B54: Nicht verwässert | AH54: 6200000
B56: Unter Berücksichtigung des Verwässerungseffektes | AH56: 6200000
A58: Auf die nachfolgenden Erläuterungen im Anhang wird verwiesen

Sheet GJ 01_02 (hidden)
A2: Carl-Zeiss-Meditec AG
A3: Konzern-Gewinn- und Verlustrechnung
A4: Geschäftsjahr 2001/2002
J5: 1.95583 | P5: 1.95583 | W5: 1.95583
H7: QI | N7: QII | U7: aufgelaufen | AA7: QIII | AG7: aufgelaufen | AM7: QIV | AS7: aufgelaufen
H8: 31. Dezember | N8: 31. März | U8: Halbjahr | AA8: 30. Juni | AG8: per QIII | AM8: 30. Sept. | AS8: per QIV
H9: 2001 | L9: % | N9: 2002 | R9: % | U9: 2002 | Y9: % | AA9: 2002 | AE9: % | AG9: 2002 | AK9: % | AM9: 2002 | AQ9: % | AS9: 2002 | AW9: %
H10: TEuro | J10: TEuro | N10: TEuro | P10: TEuro | U10: TEuro | W10: TEuro | AA10: TEuro | AC10: TEuro | AG10: TEuro | AI10: TEuro | AM10: TEuro | AO10: TEuro | AS10: TEuro | AU10: TEuro
A13: Umsatzerlöse, netto | J13: 13733 | L13: 1 | P13: =+W13-J13 -> 9589 | R13: 1 | W13: 23322 | Y13: 1 | AC13: =+AI13-W13 -> -23322 | AE13: 1 | AK13: 1 | AO13: =+AU13-AI13 -> 0 | AQ13: 1 | AW13: 1
A14: Umsatzkosten | J14: -6773 | L14: =-J14/J$13 -> 0.4931915823 | P14: =+W14-J14 -> -5143 | R14: =-P14/P$13 -> 0.5363437272 | W14: -11916 | Y14: =-W14/W$13 -> 0.5109338822 | AC14: =+AI14-W14 -> 11916 | AE14: =-AC14/AC$13 -> 0.5109338822 | AK14: =-AI14/AI$13 ->  | AO14: =+AU14-AI14 -> 0 | AQ14: =-AO14/AO$13 ->  | AW14: =-AU14/AU$13 -> 
B16: Bruttoergebnis vom Umsatz | J16: =+J13+J14 -> 6960 | L16: =J16/J$13 -> 0.5068084177 | P16: =+P13+P14 -> 4446 | R16: =P16/P$13 -> 0.4636562728 | W16: =+W13+W14 -> 11406 | Y16: =W16/W$13 -> 0.4890661178 | AC16: =+AC13+AC14 -> -11406 | AE16: =AC16/AC$13 -> 0.4890661178 | AI16: =+AI13+AI14 -> 0 | AK16: =AI16/AI$13 ->  | AO16: =+AO13+AO14 -> 0 | AQ16: =AO16/AO$13 ->  | AU16: =+AU13+AU14 -> 0 | AW16: =AU16/AU$13 -> 
A18: Vertriebs- und Marketingkosten | J18: -3626 | L18: =-J18/J$13 -> 0.2640355348 | P18: =+W18-J18 -> -2633 | R18: =-P18/P$13 -> 0.2745854625 | W18: -6259 | Y18: =-W18/W$13 -> 0.2683732098 | AC18: =+AI18-W18 -> 6259 | AE18: =-AC18/AC$13 -> 0.2683732098 | AK18: =-AI18/AI$13 ->  | AO18: =+AU18-AI18 -> 0 | AQ18: =-AO18/AO$13 ->  | AW18: =-AU18/AU$13 -> 
A19: Allgemeine und Verwaltungskosten | J19: -1220 | L19: =-J19/J$13 -> 0.0888371077 | P19: =+W19-J19 -> -1007 | R19: =-P19/P$13 -> 0.1050161644 | W19: -2227 | Y19: =-W19/W$13 -> 0.09548923763 | AC19: =+AI19-W19 -> 2227 | AE19: =-AC19/AC$13 -> 0.09548923763 | AK19: =-AI19/AI$13 ->  | AO19: =+AU19-AI19 -> 0 | AQ19: =-AO19/AO$13 ->  | AW19: =-AU19/AU$13 -> 
A20: Forschungs- und Entwicklungskosten | H20: =-1462-180 -> -1642 | N20: =+U20-H20 -> -1994 | U20: =-3113-520-3 -> -3636 | AA20: =+AG20-U20 -> 3636 | AM20: =+AS20-AG20 -> 0
A21: Abzüglich erhaltene Zuschüsse | H21: 180 | J21: =+H20+H21 -> -1462 | L21: =-J21/J$13 -> 0.1064588946 | N21: =+U21-H21 -> 340 | P21: =+N20+N21 -> -1654 | R21: =-P21/P$13 -> 0.1724893107 | U21: =375+145 -> 520 | W21: =+U20+U21 -> -3116 | Y21: =-W21/W$13 -> 0.1336077523 | AA21: =+AG21-U21 -> -520 | AC21: =+AA20+AA21 -> 3116 | AE21: =-AC21/AC$13 -> 0.1336077523 | AI21: =+AG20+AG21 -> 0 | AK21: =-AI21/AI$13 ->  | AM21: =+AS21-AG21 -> 0 | AO21: =+AM20+AM21 -> 0 | AQ21: =-AO21/AO$13 ->  | AU21: =+AS20+AS21 -> 0 | AW21: =-AU21/AU$13 -> 
A23: Abschreibung auf Geschäfts- und Firmenwert | J23: -81 | L23: =-J23/J$13 -> 0.005898201413 | P23: =+W23-J23 -> -79 | R23: =-P23/P$13 -> 0.008238606737 | W23: -160 | Y23: =-W23/W$13 -> 0.006860475088 | AC23: =+AI23-W23 -> 160 | AE23: =-AC23/AC$13 -> 0.006860475088 | AK23: =-AI23/AI$13 ->  | AO23: =+AU23-AI23 -> 0 | AQ23: =-AO23/AO$13 ->  | AW23: =-AU23/AU$13 -> 
A24: Sonstige betriebliche Erträge und Aufwendungen, netto | J24: -2 | L24: =J24/J$13 -> -0.0001456346028 | P24: =+W24-J24 -> -36 | R24: =-P24/P$13 -> 0.003754301804 | W24: =4-112+70 -> -38 | Y24: =-W24/W$13 -> 0.001629362833 | AC24: =+AI24-W24 -> 38 | AE24: =-AC24/AC$13 -> 0.001629362833 | AK24: =-AI24/AI$13 ->  | AO24: =+AU24-AI24 -> 0 | AQ24: =-AO24/AO$13 ->  | AW24: =-AU24/AU$13 -> 
A25: Kursgewinne / Kursverluste, netto | J25: 400 | L25: =J25/J$13 -> 0.02912692056 | P25: =+W25-J25 -> -11 | R25: =-P25/P$13 -> 0.001147147773 | W25: 389 | Y25: =W25/W$13 -> 0.01667953006 | AC25: =+AI25-W25 -> -389 | AE25: =AC25/AC$13 -> 0.01667953006 | AK25: =AI25/AI$13 ->  | AO25: =+AU25-AI25 -> 0 | AQ25: =AO25/AO$13 ->  | AW25: =AU25/AU$13 -> 
B27: Betriebsergebnis | J27: =+J16+J18+J19+J21+J25+J23+J24 -> 969 | L27: =J27/J$13 -> 0.07055996505 | P27: =+P16+P18+P19+P21+P25+P23+P24 -> -974 | R27: =-P27/P$13 -> 0.101574721 | W27: =+W16+W18+W19+W21+W25+W23+W24 -> -5 | Y27: =-W27/W$13 -> 0.0002143898465 | AC27: =+AC16+AC18+AC19+AC21+AC25+AC23+AC24 -> 5 | AE27: =AC27/AC$13 -> -0.0002143898465 | AI27: =+AI16+AI18+AI19+AI21+AI25+AI23+AI24 -> 0 | AK27: =-AI27/AI$13 ->  | AO27: =+AO16+AO18+AO19+AO21+AO25+AO23+AO24 -> 0 | AQ27: =AO27/AO$13 ->  | AU27: =+AU16+AU18+AU19+AU21+AU25+AU23+AU24 -> 0 | AW27: =-AU27/AU$13 -> 
B29: Aufwand für Stock Options | J29: 0 | P29: 0 | W29: 0 | AC29: 0 | AI29: 0 | AO29: 0 | AU29: 0
B31: Ergebnis vor Zinsergebnis und Ertragsteuern | J31: =+J27+J29 -> 969 | L31: =J31/J$13 -> 0.07055996505 | P31: =+P27+P29 -> -974 | R31: =P31/P$13 -> -0.101574721 | W31: =+W27+W29 -> -5 | Y31: =W31/W$13 -> -0.0002143898465 | AC31: =+AC27+AC29 -> 5 | AE31: =AC31/AC$13 -> -0.0002143898465 | AI31: =+AI27+AI29 -> 0 | AK31: =AI31/AI$13 ->  | AO31: =+AO27+AO29 -> 0 | AQ31: =AO31/AO$13 ->  | AU31: =+AU27+AU29 -> 0 | AW31: =AU31/AU$13 -> 
B33: Währungsgewinne/ -verluste | J33: 0 | P33: =+W33-J33 -> 0 | AC33: =+AI33-W33 -> 0 | AO33: =+AU33-AI33 -> 0
B34: Zinserträge / Zinsaufwendungen netto | J34: 11 | L34: =J34/J$13 -> 0.0008009903153 | P34: =+W34-J34 -> -28 | R34: =-P34/P$13 -> 0.002920012514 | W34: =270-287 -> -17 | Y34: =-W34/W$13 -> 0.0007289254781 | AC34: =+AI34-W34 -> 17 | AE34: =AC34/AC$13 -> -0.0007289254781 | AK34: =-AI34/AI$13 ->  | AO34: =+AU34-AI34 -> 0 | AQ34: =AO34/AO$13 ->  | AW34: =-AU34/AU$13 -> 
B35: Abschreibung und Wertberichtigung auf Finanzanlagen | J35: -61 | P35: =+W35-J35 -> 0 | W35: =-61 -> -61 | Y35: =-W35/W$13 -> 0.002615556127 | AC35: =+AI35-W35 -> 61 | AE35: =-AC35/AC$13 -> 0.002615556127 | AK35: =-AI35/AI$13 ->  | AO35: =+AU35-AI35 -> 0 | AQ35: =-AO35/AO$13 ->  | AW35: =-AU35/AU$13 -> 
B38: Ergebnis vor Ertragsteuern | J38: =+J31+J34+J35+J33 -> 919 | L38: =J38/J$13 -> 0.06691909998 | P38: =+P31+P34+P35+P33 -> -1002 | R38: =-P38/P$13 -> 0.1044947335 | W38: =+W31+W34+W35+W33 -> -83 | Y38: =-W38/W$13 -> 0.003558871452 | AC38: =+AC31+AC34+AC35+AC33 -> 83 | AE38: =AC38/AC$13 -> -0.003558871452 | AI38: =+AI31+AI34+AI35+AI33 -> 0 | AK38: =-AI38/AI$13 ->  | AO38: =+AO31+AO34+AO35+AO33 -> 0 | AQ38: =AO38/AO$13 ->  | AU38: =+AU31+AU34+AU35+AU33 -> 0 | AW38: =-AU38/AU$13 -> 
A40: Außerordentliches Ergebnis | P40: =+W40-J40 -> 426 | R40: =P40/P$13 -> 0.04442590468 | W40: =216+180+30 -> 426 | Y40: =W40/W$13 -> 0.01826601492 | AC40: =+AI40-W40 -> -426 | AK40: =AI40/AI$13 ->  | AO40: =+AU40-AI40 -> 0 | AW40: =AU40/AU$13 -> 
A41: Ertragsteuerertrag (-aufwand) | J41: -591 | L41: =-J41/J$13 -> 0.04303502512 | P41: =+W41-J41 -> 460 | R41: =P41/P$13 -> 0.04797163416 | W41: -131 | Y41: =-W41/W$13 -> 0.005617013978 | AC41: =+AI41-W41 -> 131 | AE41: =-AC41/AC$13 -> 0.005617013978 | AK41: =-AI41/AI$13 ->  | AO41: =+AU41-AI41 -> 0 | AQ41: =-AO41/AO$13 ->  | AW41: =-AU41/AU$13 -> 
B43: Jahresüberschuss | J43: =+J38+J41 -> 328 | L43: =J43/J$13 -> 0.02388407486 | P43: =+P38+P41+P40 -> -116 | R43: =-P43/P$13 -> 0.0120971947 | W43: =+W38+W41+W40 -> 212 | Y43: =W43/W$13 -> 0.009090129491 | AC43: =+AC38+AC41+AC40 -> -212 | AE43: =AC43/AC$13 -> 0.009090129491 | AI43: =+AI38+AI41+AI40 -> 0 | AK43: =AI43/AI$13 ->  | AO43: =+AO38+AO41+AO40 -> 0 | AQ43: =AO43/AO$13 ->  | AU43: =+AU38+AU41+AU40 -> 0 | AW43: =AU43/AU$13 -> 
A45: Gewinn / Verlust pro Aktie (in Euro):
B47: Nicht verwässert | J47: =+J43*1000/$J$54 -> 0.05290322581 | P47: =+P43/P54*1000 -> -0.01870967742 | W47: =+W43*1000/$W$54 -> 0.03419354839 | AC47: =+AC43*1000/AC54 -> -0.03419354839 | AI47: =+AI43*1000/AI54 -> 0 | AO47: =+AO43*1000/AO54 -> 0 | AU47: =+AU43*1000/AU54 -> 0
B49: Unter Berücksichtigung des Verwässerungseffektes | J49: =+J43*1000/$J$56 -> 0.05290322581 | P49: =+P43/P56*1000 -> -0.01870967742 | W49: =+W43*1000/$W$56 -> 0.03419354839 | AC49: =+AC43*1000/AC56 -> -0.03419354839 | AI49: =+AI43*1000/AI56 -> 0 | AO49: =+AO43*1000/AO56 -> 0 | AU49: =+AU43*1000/AU56 -> 0
A51: Gewichtete durchschnittliche Anzahl der
A52: während der Periode ausgegebenen Aktien:
B54: Nicht verwässert | J54: 6200000 | P54: 6200000 | W54: 6200000 | AC54: 6200000 | AI54: =+AC54 -> 6200000 | AO54: 6200000 | AU54: =+AO54 -> 6200000
B56: Unter Berücksichtigung des Verwässerungseffektes | J56: 6200000 | P56: 6200000 | W56: 6200000 | AC56: 6200000 | AI56: =+AC56 -> 6200000 | AO56: 6200000 | AU56: =+AO56 -> 6200000
A58: Auf die nachfolgenden Erläuterungen im Anhang wird verwiesen

Sheet IS-Engl_Euro (hidden)
A1: Asclepion-Meditec AG
A2: Consolidated Statements of Operations
A3: March 31, 2001 and 2002
G7: QII | O7: QII | U7: 6-Monatsbericht | AA7: 6-Monatsbericht
G8: 1 Jan - 31 March | O8: 1 Jan - 31 March | U8: 1 October - 31 March | AA8: 1 October - 31 March
G9: 2001 | K9: % | O9: 2002 | S9: % | U9: 2001 | Y9: % | AA9: 2002 | AE9: %
G10: TEuro | I10: TEuro | O10: TEuro | Q10: TEuro | U10: TEuro | W10: TEuro | AA10: TEuro | AC10: TEuro
A13: Net sales | I13: =+'IS-Deutsch_Euro'!K13 -> 0 | K13: 1 | Q13: =+'IS-Deutsch_Euro'!S13 -> 0 | S13: 1 | W13: =+'IS-Deutsch_Euro'!Y13 -> 0 | Y13: 1 | AC13: =+'IS-Deutsch_Euro'!AE13 -> 0 | AE13: 1
A14: Cost of goods sold | I14: =+'IS-Deutsch_Euro'!K14 -> 0 | K14: =-I14/I$13 ->  | Q14: =+'IS-Deutsch_Euro'!S14 -> 0 | S14: =-Q14/Q$13 ->  | W14: =+'IS-Deutsch_Euro'!Y14 -> 0 | Y14: =-W14/W$13 ->  | AC14: =+'IS-Deutsch_Euro'!AE14 -> 0 | AE14: =-AC14/AC$13 -> 
B16: Gross profit | I16: =+I13+I14 -> 0 | K16: =I16/I$13 ->  | Q16: =+Q13+Q14 -> 0 | S16: =Q16/Q$13 ->  | W16: =+W13+W14 -> 0 | Y16: =W16/W$13 ->  | AC16: =+AC13+AC14 -> 0 | AE16: =AC16/AC$13 -> 
A18: Selling and marketing expenses | I18: =+'IS-Deutsch_Euro'!K18 -> 0 | K18: =-I18/I$13 ->  | Q18: =+'IS-Deutsch_Euro'!S18 -> 0 | S18: =-Q18/Q$13 ->  | W18: =+'IS-Deutsch_Euro'!Y18 -> 0 | Y18: =-W18/W$13 ->  | AC18: =+'IS-Deutsch_Euro'!AE18 -> 0 | AE18: =-AC18/AC$13 -> 
A19: General and administrative expenses | I19: =+'IS-Deutsch_Euro'!K19 -> 0 | K19: =-I19/I$13 ->  | Q19: =+'IS-Deutsch_Euro'!S19 -> 0 | S19: =-Q19/Q$13 ->  | W19: =+'IS-Deutsch_Euro'!Y19 -> 0 | Y19: =-W19/W$13 ->  | AC19: =+'IS-Deutsch_Euro'!AE19 -> 0 | AE19: =-AC19/AC$13 -> 
A20: Research and development | G20: =+'IS-Deutsch_Euro'!I20 -> 0 | I20: =+'IS-Deutsch_Euro'!K20 -> 0 | O20: =+'IS-Deutsch_Euro'!Q20 -> 0 | Q20: =+'IS-Deutsch_Euro'!S20 -> 0 | U20: =+'IS-Deutsch_Euro'!W20 -> 0 | W20: =+'IS-Deutsch_Euro'!Y20 -> 0 | AA20: =+'IS-Deutsch_Euro'!AC20 -> 0 | AC20: =+'IS-Deutsch_Euro'!AE20 -> 0
A21: Research and development, net (less government grants) | G21: =+'IS-Deutsch_Euro'!I21 -> 0 | I21: =+'IS-Deutsch_Euro'!K21 -> 0 | K21: =-I21/I$13 ->  | O21: =+'IS-Deutsch_Euro'!Q21 -> 0 | Q21: =+'IS-Deutsch_Euro'!S21 -> 0 | S21: =-Q21/Q$13 ->  | U21: =+'IS-Deutsch_Euro'!W21 -> 0 | W21: =+'IS-Deutsch_Euro'!Y21 -> 0 | Y21: =-W21/W$13 ->  | AA21: =+'IS-Deutsch_Euro'!AC21 -> 0 | AC21: =+'IS-Deutsch_Euro'!AE21 -> 0 | AE21: =-AC21/AC$13 -> 
A23: Amortization of goodwill | I23: =+'IS-Deutsch_Euro'!K23 -> 0 | K23: =-I23/I$13 ->  | Q23: =+'IS-Deutsch_Euro'!S23 -> 0 | S23: =-Q23/Q$13 ->  | W23: =+'IS-Deutsch_Euro'!Y23 -> 0 | Y23: =-W23/W$13 ->  | AC23: =+'IS-Deutsch_Euro'!AE23 -> 0 | AE23: =-AC23/AC$13 -> 
A24: Other operating income and expenses, net | I24: =+'IS-Deutsch_Euro'!K24 -> 0 | K24: =I24/I$13 ->  | Q24: =+'IS-Deutsch_Euro'!S24 -> 0 | S24: =-Q24/Q$13 ->  | W24: =+'IS-Deutsch_Euro'!Y24 -> 0 | Y24: =-W24/W$13 ->  | AC24: =+'IS-Deutsch_Euro'!AE24 -> 0 | AE24: =-AC24/AC$13 -> 
A25: Foreign currency exchange gains / (losses), net | I25: =+'IS-Deutsch_Euro'!K25 -> 0 | K25: =-I25/I$13 ->  | Q25: =+'IS-Deutsch_Euro'!S25 -> 0 | S25: =Q25/Q$13 ->  | W25: =+'IS-Deutsch_Euro'!Y25 -> 0 | Y25: =W25/W$13 ->  | AC25: =+'IS-Deutsch_Euro'!AE25 -> 0 | AE25: =AC25/AC$13 -> 
B27: Opterating income | I27: =+I16+I18+I19+I21+I25+I23+I24 -> 0 | K27: =I27/I$13 ->  | Q27: =+Q16+Q18+Q19+Q21+Q25+Q23+Q24 -> 0 | S27: =Q27/Q$13 ->  | W27: =+W16+W18+W19+W21+W25+W23+W24 -> 0 | Y27: =W27/W$13 ->  | AC27: =+AC16+AC18+AC19+AC21+AC25+AC23+AC24 -> 0 | AE27: =AC27/AC$13 -> 
B29: Aufwand für Stock Options | I29: 0 | Q29: 0 | W29: 0 | AC29: 0
B31: Ergebnis vor Zinsergebnis und Ertragsteuern | I31: =+I27+I29 -> 0 | K31: =I31/I$13 ->  | Q31: =+Q27+Q29 -> 0 | S31: =Q31/Q$13 ->  | W31: =+W27+W29 -> 0 | Y31: =W31/W$13 ->  | AC31: =+AC27+AC29 -> 0 | AE31: =AC31/AC$13 -> 
B33: Foreign currency exchange gains / (losses), net | I33: =+'IS-Deutsch_Euro'!K33 -> 0 | Q33: =+'IS-Deutsch_Euro'!S33 -> 0 | W33: =+'IS-Deutsch_Euro'!Y33 -> 0 | AC33: =+'IS-Deutsch_Euro'!AE33 -> 0
B34: Interest income, net | I34: =+'IS-Deutsch_Euro'!K34 -> 0 | K34: =I34/I$13 ->  | Q34: =+'IS-Deutsch_Euro'!S34 -> 0 | S34: =Q34/Q$13 ->  | W34: =+'IS-Deutsch_Euro'!Y34 -> 0 | Y34: =W34/W$13 ->  | AC34: =+'IS-Deutsch_Euro'!AE34 -> 0 | AE34: =AC34/AC$13 -> 
B35: Depreciation and valuation adjustments on financial assets | I35: =+'IS-Deutsch_Euro'!K35 -> 0 | Q35: =+'IS-Deutsch_Euro'!S35 -> 0 | S35: =-Q35/Q$13 ->  | W35: =+'IS-Deutsch_Euro'!Y35 -> 0 | Y35: =-W35/W$13 ->  | AC35: =+'IS-Deutsch_Euro'!AE35 -> 0 | AE35: =-AC35/AC$13 -> 
B38: Income before income taxes | I38: =+I31+I34+I33+I35 -> 0 | K38: =I38/I$13 ->  | Q38: =+Q31+Q34+Q33+Q35 -> 0 | S38: =Q38/Q$13 ->  | W38: =+W31+W34+W33+W35 -> 0 | Y38: =W38/W$13 ->  | AC38: =+AC31+AC34+AC33+AC35 -> 0 | AE38: =AC38/AC$13 -> 
A41: Income tax benefit / (expense) | I41: =+'IS-Deutsch_Euro'!K42 -> 0 | K41: =-I41/I$13 ->  | Q41: =+'IS-Deutsch_Euro'!S42 -> 0 | S41: =-Q41/Q$13 ->  | W41: =+'IS-Deutsch_Euro'!Y42 -> 0 | Y41: =-W41/W$13 ->  | AC41: =+'IS-Deutsch_Euro'!AE42 -> 0 | AE41: =-AC41/AC$13 -> 
B43: Net income | I43: =+I38+I41 -> 0 | K43: =I43/I$13 ->  | Q43: =+Q38+Q41 -> 0 | S43: =Q43/Q$13 ->  | W43: =+W38+W41 -> 0 | Y43: =W43/W$13 ->  | AC43: =+AC38+AC41 -> 0 | AE43: =AC43/AC$13 -> 
A45: Net income per share
B47: basic (in €) | I47: =+I43/I54*1000 ->  | Q47: =+Q43/Q54*1000 ->  | W47: =+W43/W54*1000 ->  | AC47: =+AC43/AC54*1000 -> 
B49: diluted (in €) | I49: =+I43/I56*1000 ->  | Q49: =+Q43/Q56*1000 ->  | W49: =+W43/W56*1000 ->  | AC49: =+AC43/AC56*1000 -> 
A52: Number of shares average:
B54: Weighted average shares outstanding (basic) | I54: =+'IS-Deutsch_Euro'!K55 -> 0 | Q54: =+'IS-Deutsch_Euro'!S55 -> 0 | W54: =+'IS-Deutsch_Euro'!Y55 -> 0 | AC54: =+'IS-Deutsch_Euro'!AE55 -> 0
B56: Weighted average shares outstanding (diluted) | I56: =+'IS-Deutsch_Euro'!K57 -> 0 | Q56: =+'IS-Deutsch_Euro'!S57 -> 0 | W56: =+'IS-Deutsch_Euro'!Y57 -> 0 | AC56: =+'IS-Deutsch_Euro'!AE57 -> 0
A58: We refer to the following notes, especially to the section "Consolidated statement of operations"
I59: =IF(I43='IS-Deutsch_Euro'!K44,"","ERROR") ->  | Q59: =IF(Q43='IS-Deutsch_Euro'!S44,"","ERROR") ->  | W59: =IF(W43='IS-Deutsch_Euro'!Y44,"","ERROR") ->  | AC59: =IF(AC43='IS-Deutsch_Euro'!AE44,"","ERROR") -> 
